Workbook

Sheet Year-end Performance Review (hidden)
A1: The University of Kansas
A2: Year-end Rate Performance Review
A4: Form Requirements: Any department that is charging a fee for a good or service is required to complete the following form on annual basis and submit it to the Service Center Fee Evaluation Committee by December 31st. Departments that do not complete this form by the required due date face the risk of having their fee approval revoked and will not be allowed to collect any future collections.
A6: Service Center:
A7: Dept/Cost Center:
A8: Primary Contact:
B9: Name/Title
B10: Direct Phone #
B11: E-mail Address
A13: DESCRIPTION OF GOOD/SERVICE PROVIDED BY SERVICE CENTER:
A23: DATE OF APPROVED RATE STRUCTURE:
A25: IS A RATE CHANGE REQUESTED FOR THE UPCOMING FISCAL YEAR: | L25: YES | N25: NO
A26: If YES, attach completed "Service Center Request Form"
A28: CASH FLOW SUMMARY: (Provide both Current Year and Prior Year)
H30: FY200Y | J30: FY200X
B31: Revenues:
B32: Internal Users
C33: KU Departments | H33: 225000 | J33: 210000
C34: Sponsored Projects | H34: 680000 | J34: 675000
B35: External Users
C36: Students | H36: 0 | J36: 0
C37: Faculty/Staff | H37: 0 | J37: 0
C38: Off Campus Entities: | H38: 0 | J38: 0
D39: Other Kansas Universities | H39: 0 | J39: 0
D40: Other Universities | H40: 0 | J40: 0
D41: Kansas State Agencies | H41: 0 | J41: 0
D42: Other State Agencies | H42: 0 | J42: 0
D43: Other (Foundations, Corporations, etc.) | H43: 0 | J43: 0
E44: Total Revenues | H44: =SUM(H33:H43) -> 905000 | J44: =SUM(J33:J43) -> 885000
B46: Expenses:
C47: Salaries | H47: 85000 | J47: 80000
C48: Fringe Benefits | H48: 22880 | J48: 20250
C49: Inventory | H49: 750000 | J49: 770000
C50: Stockroom Supplies | H50: 22000 | J50: 25000
C51: Other Expenses | H51: 1200 | J51: 2500
E52: Total Recoverable Expenses | H52: =SUM(H47:H51) -> 881080 | J52: =SUM(J47:J51) -> 897750
B54: Operating Gain/Loss | H54: =H44-H52 -> 23920 | J54: =J44-J52 -> -12750
B56: Percentage of Expenses | H56: =H54/H52 -> 0.02714849957 | J56: =J54/J52 -> -0.0142021721
B58: Excluded Expenses
C59: Capitalized Equipment | H59: 0 | J59: 0
A65: APPROVALS:
A67: SERVICE CENTER PRIMARY CONTACT: | L67: DATE:
A69: DEPT. CHAIR/DIRECTOR APPROVAL: | L69: DATE:
A71: DEAN APPROVAL : | L71: DATE:
A72: (If Academic Department or Organized Research Unit)
A75: COMMITTEE ACTION:
F77: Accepted | I77: Not Accepted
A79: COMMITTEE SIGNATURE: | L79: DATE:
A82: VP, ADMIN & FINANCE APPROVAL: | L82: DATE:

Sheet Instructions
B1: CELLS THAT HAVE THIS BLUE COLOR SHADING ARE AVAILABLE TO YOU TO INPUT YOUR NECESSARY DATA. THE DATA WITHIN THESE CELLS ARE PROGRAMMED TO CALCULATE VARIOUS FIGURES THAT WILL CALCULATE YOUR RATES
B5: Overview of Service Center Budget Template
B6: -Template tabs used for input are numbered from 1 to 9. Please complete the analysis in numerical order (1-9) on the template. Tabs 6-9 are predominantly computed Summary results.
B7: -Tabs 1-9 containing cells highlighted in the BLUE color can be modified to input new values without disrupting the formulas linking the various sheets.
B9: 1 Volume Projections Tab Green Tab)
B10: - Record your anticipated volume for each service
B11: - Determine your unit of measure for each service (ex. per hour or per sample)
B12: - Estimate the volume of services by users (both internal and external) so the appropriate rates can be applied to each type of user in future tabs.
B14: 2 Salaries & Fringe Tab (Red Tab)
B15: - Please input the the following for each employee
C16: (1) Full name, title, annual salary and fringe rate for each individual related to the service center
C17: (2) Enter the percent effort it takes for each individual to complete each service
C18: (3) Check to make sure you have allocated the total effort assigned to the service center for each individual
B20: 3 Other Direct Expenses (Red Tabs)
B21: - Enter service specific or fixed costs such as equipment leases, service contracts, kit costs, and consumable supplies for each service
B23: 4 Admin & Overhead Expenses (Red Tabs)
B24: - Enter non-service specific or overhead costs to operate the service center. This includes one-time costs such as travel, membership fees, large one time part repairs, rent, and administrative personnel.
B25: - Enter Logevity pay for any facility staff members as a non-service specific or overhead costs to operate the service center.
B27: 5 Equipment Depreciation (Red Tab)
B28: -Enter the detailed information (model, serial #, purchase price) for each piece of equipment with book value in your service center.
B29: -For each piece of equipment, allocate the percent of usage for each service
B31: 6 Expense Summary (Red Tab)
B32: -This is a calculated tab that displays results only and has no user input data cells other than a cell to enter any prior year surplus/deficit.
B34: 7 Proposed Rates (Green Tab)
B35: - Rates are calculated by the system
B36: - In the event that you want to input rates different than the system calculated, please input into each corresponding service under "Charge Per Unit"
B38: 8 Revenue Summary (Green Tab)
B39: -This is a calculated results-only tab that multiplies the rates from Proposed Rates tab times the anticipated demand for each service from the Volume Projections tab to arrive at the expected annual revenue.
B40: -The XLS sheet also breaks out the portion of expense into operations, equipment reserve, and F&A.
B42: 9 Five Year Projection (Blue Tab)
B43: -Enter the anticipated start date, the number of months your core will be in service, and any additional lag in revenue during the first year. Most service centers do not operate at 100% capacity in their first year.
B44: -The rest of the tab is a calculated based on aggregated results from information on previous tabs to display your 5-year annual operating surplus/deficit.

Sheet 1 Volume Projections
A1: Service Center Name:
A2: Core Director:
A3: Service Center Fund #:
A4: =B1 -> 00:00:00
A5: Volume Projections
A6: ='2 Salary & Fringe'!A3:BI3 -> Fiscal Year 2026
A8: Please enter data in the blue highlighted cells
A9: Do not fill. These are automatically populated or protected.
E10: Internal | F10: UTSystem / In Network | G10: External Non-Profit | H10: External For-Profit
A11: Service # | B11: Service Description | C11: Metric | D11: Total Estimated Annual Usage | E11: All UTHealh Users | F11: UTSystem Institutions | G11: Non-Profit Universities & State Agencies | H11: For-Profit Corporations, Pharma, etc.
A12: Example:
A13: Service 1 | C13: Machine Hours | D13: =SUM(E13:H13) -> 305 | E13: 100 | F13: 200 | H13: 5
A14: Service 2 | C14: Completed Test | D14: =SUM(E14:H14) -> 30 | E14: 15 | G14: 15
A15: Service 1 | D15: =SUM(E15:H15) -> 0 | E15: 0 | F15: 0 | G15: 0 | H15: 0
A16: Service 2 | D16: 0 | E16: 0 | F16: 0 | G16: 0 | H16: 0
A17: Service 3 | D17: 0 | E17: 0 | F17: 0 | G17: 0 | H17: 0
A18: Service 4 | D18: 0 | E18: 0 | F18: 0 | G18: 0 | H18: 0
A19: Service 5 | D19: 0 | E19: 0 | F19: 0 | G19: 0 | H19: 0
A20: Service 6 | D20: 0 | E20: 0 | F20: 0 | G20: 0 | H20: 0
A21: Service 7 | D21: 0 | E21: 0 | F21: 0 | G21: 0 | H21: 0
A22: Service 8 | D22: 0 | E22: 0 | F22: 0 | G22: 0 | H22: 0
A23: Service 9 | D23: 0 | E23: 0 | F23: 0 | G23: 0 | H23: 0
A24: Service 10 | D24: 0 | E24: 0 | F24: 0 | G24: 0 | H24: 0
A25: Service 11 | D25: 0 | E25: 0 | F25: 0 | G25: 0 | H25: 0
A26: Service 12 | D26: 0 | E26: 0 | F26: 0 | G26: 0 | H26: 0
A27: Service 13 | D27: 0 | E27: 0 | F27: 0 | G27: 0 | H27: 0
A28: Service 14 | D28: 0 | E28: 0 | F28: 0 | G28: 0 | H28: 0
A29: Service 15 | D29: =SUM(E29:H29) -> 0 | E29: 0 | F29: 0 | G29: 0 | H29: 0
A30: Service 16 | D30: 0 | E30: 0 | F30: 0 | G30: 0 | H30: 0
A31: Service 17 | D31: 0 | E31: 0 | F31: 0 | G31: 0 | H31: 0
A32: Service 18 | D32: 0 | E32: 0 | F32: 0 | G32: 0 | H32: 0
A33: Service 19 | D33: 0 | E33: 0 | F33: 0 | G33: 0 | H33: 0
A34: Service 20 | D34: 0 | E34: 0 | F34: 0 | G34: 0 | H34: 0
A35: Service 21 | D35: 0 | E35: 0 | F35: 0 | G35: 0 | H35: 0
A36: Service 22 | D36: 0 | E36: 0 | F36: 0 | G36: 0 | H36: 0
A37: Service 23 | D37: 0 | E37: 0 | F37: 0 | G37: 0 | H37: 0
A38: Service 24 | D38: 0 | E38: 0 | F38: 0 | G38: 0 | H38: 0
A39: Service 25 | D39: 0 | E39: 0 | F39: 0 | G39: 0 | H39: 0
C40: Total By Users | D40: =SUM(D15:D39) -> 0 | E40: =SUM(E15:E39) -> 0 | F40: =SUM(F15:F39) -> 0 | G40: =SUM(G15:G39) -> 0 | H40: =SUM(H15:H39) -> 0

Sheet 2 Salary & Fringe
A1: ='1 Volume Projections'!B1 -> 00:00:00
A2: Salary and Fringe
A3: Fiscal Year 2026
A5: Please enter data in the blue highlighted cells
A6: Do not fill. These are automatically populated or protected.
J7: Service Description | AF7: Service Description
J8: ='1 Volume Projections'!$B15 -> 0 | L8: ='1 Volume Projections'!B16 -> 0 | N8: ='1 Volume Projections'!B17 -> 0 | P8: ='1 Volume Projections'!B18 -> 0 | R8: ='1 Volume Projections'!B19 -> 0 | T8: ='1 Volume Projections'!B20 -> 0 | V8: ='1 Volume Projections'!B21 -> 0 | X8: ='1 Volume Projections'!B22 -> 0 | Z8: ='1 Volume Projections'!B23 -> 0 | AB8: ='1 Volume Projections'!B24 -> 0 | AD8: ='1 Volume Projections'!B25 -> 0 | AF8: ='1 Volume Projections'!B26 -> 0 | AH8: ='1 Volume Projections'!B27 -> 0 | AJ8: ='1 Volume Projections'!B28 -> 0 | AL8: ='1 Volume Projections'!B29 -> 0 | AN8: ='1 Volume Projections'!B30 -> 0 | AP8: ='1 Volume Projections'!B31 -> 0 | AR8: ='1 Volume Projections'!B32 -> 0 | AT8: ='1 Volume Projections'!B33 -> 0 | AV8: ='1 Volume Projections'!B34 -> 0 | AX8: ='1 Volume Projections'!B35 -> 0 | AZ8: ='1 Volume Projections'!B36 -> 0 | BB8: ='1 Volume Projections'!B37 -> 0 | BD8: ='1 Volume Projections'!B38 -> 0 | BF8: ='1 Volume Projections'!B39 -> 0
A9: Employee Name | B9: Title | C9: UUID # | D9: Annual Salary $ | E9: Effort % | F9: Effort Amount $ | G9: Fringe Benefit Rate % | H9: Fringe Benefits Amount $ | I9: Total Salary & FB $ | J9: Service #1 | K9: % of Time | L9: Service #2 | M9: % of Time | N9: Service #3 | O9: % of Time | P9: Service #4 | Q9: % of Time | R9: Service #5 | S9: % of Time | T9: Service #6 | U9: % of Time | V9: Service #7 | W9: % of Time | X9: Service #8 | Y9: % of Time | Z9: Service #9 | AA9: % of Time | AB9: Service #10 | AC9: % of Time | AD9: Service #11 | AE9: % of Time | AF9: Service #12 | AG9: % of Time | AH9: Service #13 | AI9: % of Time | AJ9: Service #14 | AK9: % of Time | AL9: Service #15 | AM9: % of Time | AN9: Service #16 | AO9: % of Time | AP9: Service #17 | AQ9: % of Time | AR9: Service #18 | AS9: % of Time | AT9: Service #19 | AU9: % of Time | AV9: Service #20 | AW9: % of Time | AX9: Service #21 | AY9: % of Time | AZ9: Service #22 | BA9: % of Time | BB9: Service #23 | BC9: % of Time | BD9: Service #24 | BE9: % of Time | BF9: Service #25 | BG9: % of Time | BH9: Check Total | BI9: Comments
A10: Example: | BI10: Check Total Must Equal 100% Effort
A11: Jane Doe | B11: Technician | C11: 99999 | D11: 48000 | E11: 1 | F11: =+D11*E11 -> 48000 | G11: 0.34 | H11: =+F11*G11 -> 16320 | I11: =+F11+H11 -> 64320 | J11: =I11*K11 -> 32160 | K11: 0.5 | L11: =I11*M11 -> 32160 | M11: 0.5 | N11: =I11*O11 -> 0 | O11: 0 | P11: =I11*Q11 -> 0 | Q11: 0 | R11: =I11*S11 -> 0 | S11: 0 | T11: =I11*U11 -> 0 | U11: 0 | V11: =I11*W11 -> 0 | W11: 0 | X11: =I11*Y11 -> 0 | Y11: 0 | Z11: =I11*AA11 -> 0 | AA11: 0 | AB11: =G11*AC11 -> 0 | AC11: 0 | AD11: =I11*AE11 -> 0 | AE11: 0 | AF11: =K11*AG11 -> 0 | AG11: 0 | AH11: =M11*AI11 -> 0 | AI11: 0 | AJ11: =O11*AK11 -> 0 | AK11: 0 | AL11: =Q11*AM11 -> 0 | AM11: 0 | AN11: =S11*AO11 -> 0 | AO11: 0 | AP11: =U11*AQ11 -> 0 | AQ11: 0 | AR11: =W11*AS11 -> 0 | AS11: 0 | AT11: =Y11*AU11 -> 0 | AU11: 0 | AV11: =AA11*AW11 -> 0 | AW11: 0 | AX11: =AC11*AY11 -> 0 | AY11: 0 | AZ11: =AE11*BA11 -> 0 | BA11: 0 | BB11: =AG11*BC11 -> 0 | BC11: 0 | BD11: =AI11*BE11 -> 0 | BE11: 0 | BF11: =AK11*BG11 -> 0 | BG11: 0 | BH11: =+K11+M11+O11+Q11+S11+U11+W11+Y11+AA11+AC11+AE11+AG11+AI11+AK11+AM11+AO11+AQ11+AS11+AU11+AW11+AY11+BA11+BC11+BE11+BG11 -> 1
F12: =+D12*E12 -> 0 | H12: =+F12*G12 -> 0 | I12: =+F12+H12 -> 0 | J12: =$I12*K12 -> 0 | L12: =$I12*M12 -> 0 | N12: =$I12*O12 -> 0 | P12: =$I12*Q12 -> 0 | R12: =$I12*S12 -> 0 | T12: =$I12*U12 -> 0 | V12: =$I12*W12 -> 0 | X12: =$I12*Y12 -> 0 | Z12: =$I12*AA12 -> 0 | AB12: =$I12*AC12 -> 0 | AD12: =$I12*AE12 -> 0 | AF12: =$I12*AG12 -> 0 | AH12: =$I12*AI12 -> 0 | AJ12: =$I12*AK12 -> 0 | AL12: =$I12*AM12 -> 0 | AN12: =$I12*AO12 -> 0 | AP12: =$I12*AQ12 -> 0 | AR12: =$I12*AS12 -> 0 | AT12: =$I12*AU12 -> 0 | AV12: =$I12*AW12 -> 0 | AX12: =$I12*AY12 -> 0 | AZ12: =$I12*BA12 -> 0 | BB12: =$I12*BC12 -> 0 | BD12: =$I12*BE12 -> 0 | BF12: =$I12*BG12 -> 0 | BH12: =+K12+M12+O12+Q12+S12+U12+W12+Y12+AA12+AC12+AE12+AG12+AI12+AK12+AM12+AO12+AQ12+AS12+AU12+AW12+AY12+BA12+BC12+BE12+BG12 -> 0
F13: =+D13*E13 -> 0 | H13: 0 | I13: 0 | J13: 0 | L13: 0 | N13: 0 | P13: 0 | R13: 0 | T13: 0 | V13: 0 | X13: 0 | Z13: 0 | AB13: 0 | AD13: 0 | AF13: 0 | AH13: 0 | AJ13: 0 | AL13: 0 | AN13: 0 | AP13: 0 | AR13: 0 | AT13: 0 | AV13: 0 | AX13: 0 | AZ13: 0 | BB13: 0 | BD13: 0 | BF13: 0 | BH13: =+K13+M13+O13+Q13+S13+U13+W13+Y13+AA13+AC13+AE13+AG13+AI13+AK13+AM13+AO13+AQ13+AS13+AU13+AW13+AY13+BA13+BC13+BE13+BG13 -> 0
F14: 0 | H14: 0 | I14: 0 | J14: 0 | L14: 0 | N14: 0 | P14: 0 | R14: 0 | T14: 0 | V14: 0 | X14: 0 | Z14: 0 | AB14: 0 | AD14: 0 | AF14: 0 | AH14: 0 | AJ14: 0 | AL14: 0 | AN14: 0 | AP14: 0 | AR14: 0 | AT14: 0 | AV14: 0 | AX14: 0 | AZ14: 0 | BB14: 0 | BD14: 0 | BF14: 0 | BH14: 0
F15: 0 | H15: 0 | I15: 0 | J15: 0 | L15: 0 | N15: 0 | P15: 0 | R15: 0 | T15: 0 | V15: 0 | X15: 0 | Z15: 0 | AB15: 0 | AD15: 0 | AF15: 0 | AH15: 0 | AJ15: 0 | AL15: 0 | AN15: 0 | AP15: 0 | AR15: 0 | AT15: 0 | AV15: 0 | AX15: 0 | AZ15: 0 | BB15: 0 | BD15: 0 | BF15: 0 | BH15: 0
F16: 0 | H16: =+F16*G16 -> 0 | I16: =+F16+H16 -> 0 | J16: =$I16*K16 -> 0 | L16: =$I16*M16 -> 0 | N16: =$I16*O16 -> 0 | P16: =$I16*Q16 -> 0 | R16: =$I16*S16 -> 0 | T16: =$I16*U16 -> 0 | V16: =$I16*W16 -> 0 | X16: =$I16*Y16 -> 0 | Z16: =$I16*AA16 -> 0 | AB16: =$I16*AC16 -> 0 | AD16: =$I16*AE16 -> 0 | AF16: =$I16*AG16 -> 0 | AH16: =$I16*AI16 -> 0 | AJ16: =$I16*AK16 -> 0 | AL16: =$I16*AM16 -> 0 | AN16: =$I16*AO16 -> 0 | AP16: =$I16*AQ16 -> 0 | AR16: =$I16*AS16 -> 0 | AT16: =$I16*AU16 -> 0 | AV16: =$I16*AW16 -> 0 | AX16: 0 | AZ16: 0 | BB16: 0 | BD16: 0 | BF16: 0 | BH16: 0
F17: 0 | H17: 0 | I17: 0 | J17: 0 | L17: 0 | N17: 0 | P17: 0 | R17: 0 | T17: 0 | V17: 0 | X17: 0 | Z17: 0 | AB17: 0 | AD17: 0 | AF17: 0 | AH17: 0 | AJ17: 0 | AL17: 0 | AN17: 0 | AP17: 0 | AR17: 0 | AT17: 0 | AV17: 0 | AX17: 0 | AZ17: 0 | BB17: 0 | BD17: 0 | BF17: 0 | BH17: 0
F18: 0 | H18: 0 | I18: 0 | J18: 0 | L18: 0 | N18: 0 | P18: 0 | R18: 0 | T18: 0 | V18: 0 | X18: 0 | Z18: 0 | AB18: 0 | AD18: 0 | AF18: 0 | AH18: 0 | AJ18: 0 | AL18: 0 | AN18: 0 | AP18: 0 | AR18: 0 | AT18: 0 | AV18: 0 | AX18: 0 | AZ18: 0 | BB18: 0 | BD18: 0 | BF18: 0 | BH18: 0
F19: 0 | H19: 0 | I19: 0 | J19: 0 | L19: 0 | N19: 0 | P19: 0 | R19: 0 | T19: 0 | V19: 0 | X19: 0 | Z19: 0 | AB19: 0 | AD19: 0 | AF19: 0 | AH19: 0 | AJ19: 0 | AL19: 0 | AN19: 0 | AP19: 0 | AR19: 0 | AT19: 0 | AV19: 0 | AX19: 0 | AZ19: 0 | BB19: 0 | BD19: 0 | BF19: 0 | BH19: 0
F20: 0 | H20: 0 | I20: 0 | J20: 0 | L20: 0 | N20: 0 | P20: 0 | R20: 0 | T20: 0 | V20: 0 | X20: 0 | Z20: 0 | AB20: 0 | AD20: 0 | AF20: 0 | AH20: 0 | AJ20: 0 | AL20: 0 | AN20: 0 | AP20: 0 | AR20: 0 | AT20: 0 | AV20: 0 | AX20: 0 | AZ20: 0 | BB20: 0 | BD20: 0 | BF20: 0 | BH20: 0
F21: 0 | H21: 0 | I21: 0 | J21: 0 | L21: 0 | N21: 0 | P21: 0 | R21: 0 | T21: 0 | V21: 0 | X21: 0 | Z21: 0 | AB21: 0 | AD21: 0 | AF21: 0 | AH21: 0 | AJ21: 0 | AL21: 0 | AN21: 0 | AP21: 0 | AR21: 0 | AT21: 0 | AV21: 0 | AX21: 0 | AZ21: 0 | BB21: 0 | BD21: 0 | BF21: 0 | BH21: 0
F22: 0 | H22: 0 | I22: 0 | J22: 0 | L22: 0 | N22: 0 | P22: 0 | R22: 0 | T22: 0 | V22: 0 | X22: 0 | Z22: 0 | AB22: 0 | AD22: 0 | AF22: 0 | AH22: 0 | AJ22: 0 | AL22: 0 | AN22: 0 | AP22: 0 | AR22: 0 | AT22: 0 | AV22: 0 | AX22: 0 | AZ22: 0 | BB22: 0 | BD22: 0 | BF22: 0 | BH22: 0
F23: 0 | H23: 0 | I23: 0 | J23: 0 | L23: 0 | N23: 0 | P23: 0 | R23: 0 | T23: 0 | V23: 0 | X23: 0 | Z23: 0 | AB23: 0 | AD23: 0 | AF23: 0 | AH23: 0 | AJ23: 0 | AL23: 0 | AN23: 0 | AP23: 0 | AR23: 0 | AT23: 0 | AV23: 0 | AX23: 0 | AZ23: 0 | BB23: 0 | BD23: 0 | BF23: 0 | BH23: 0
F24: 0 | H24: 0 | I24: 0 | J24: 0 | L24: 0 | N24: 0 | P24: 0 | R24: 0 | T24: 0 | V24: 0 | X24: 0 | Z24: 0 | AB24: 0 | AD24: 0 | AF24: 0 | AH24: 0 | AJ24: 0 | AL24: 0 | AN24: 0 | AP24: 0 | AR24: 0 | AT24: 0 | AV24: 0 | AX24: 0 | AZ24: 0 | BB24: 0 | BD24: 0 | BF24: 0 | BH24: 0
F25: 0 | H25: 0 | I25: 0 | J25: 0 | L25: 0 | N25: 0 | P25: 0 | R25: 0 | T25: 0 | V25: 0 | X25: 0 | Z25: 0 | AB25: 0 | AD25: 0 | AF25: 0 | AH25: 0 | AJ25: 0 | AL25: 0 | AN25: 0 | AP25: 0 | AR25: 0 | AT25: 0 | AV25: 0 | AX25: 0 | AZ25: 0 | BB25: 0 | BD25: 0 | BF25: 0 | BH25: 0
F26: 0 | H26: 0 | I26: 0 | J26: 0 | L26: 0 | N26: 0 | P26: 0 | R26: 0 | T26: 0 | V26: 0 | X26: 0 | Z26: 0 | AB26: 0 | AD26: 0 | AF26: 0 | AH26: 0 | AJ26: 0 | AL26: 0 | AN26: 0 | AP26: 0 | AR26: 0 | AT26: 0 | AV26: 0 | AX26: 0 | AZ26: 0 | BB26: 0 | BD26: 0 | BF26: 0 | BH26: 0
F27: 0 | H27: 0 | I27: 0 | J27: 0 | L27: 0 | N27: 0 | P27: 0 | R27: 0 | T27: 0 | V27: 0 | X27: 0 | Z27: 0 | AB27: 0 | AD27: 0 | AF27: 0 | AH27: 0 | AJ27: 0 | AL27: 0 | AN27: 0 | AP27: 0 | AR27: 0 | AT27: 0 | AV27: 0 | AX27: 0 | AZ27: 0 | BB27: 0 | BD27: 0 | BF27: 0 | BH27: 0
F28: 0 | H28: 0 | I28: 0 | J28: 0 | L28: 0 | N28: 0 | P28: 0 | R28: 0 | T28: 0 | V28: 0 | X28: 0 | Z28: 0 | AB28: 0 | AD28: 0 | AF28: 0 | AH28: 0 | AJ28: 0 | AL28: 0 | AN28: 0 | AP28: 0 | AR28: 0 | AT28: 0 | AV28: 0 | AX28: 0 | AZ28: 0 | BB28: 0 | BD28: 0 | BF28: 0 | BH28: 0
F29: 0 | H29: 0 | I29: 0 | J29: 0 | L29: 0 | N29: 0 | P29: 0 | R29: 0 | T29: 0 | V29: 0 | X29: 0 | Z29: 0 | AB29: 0 | AD29: 0 | AF29: 0 | AH29: 0 | AJ29: 0 | AL29: 0 | AN29: 0 | AP29: 0 | AR29: 0 | AT29: 0 | AV29: 0 | AX29: 0 | AZ29: 0 | BB29: 0 | BD29: 0 | BF29: 0 | BH29: 0
D30: =SUM(D12:D29) -> 0 | F30: =SUM(F12:F29) -> 0 | H30: =SUM(H12:H29) -> 0 | I30: =SUM(I12:I29) -> 0 | J30: =SUM(J12:J29) -> 0 | L30: =SUM(L12:L29) -> 0 | N30: =SUM(N12:N29) -> 0 | P30: =SUM(P12:P29) -> 0 | R30: =SUM(R12:R29) -> 0 | T30: =SUM(T12:T29) -> 0 | V30: =SUM(V12:V29) -> 0 | X30: =SUM(X12:X29) -> 0 | Z30: =SUM(Z12:Z29) -> 0 | AB30: =SUM(AB12:AB29) -> 0 | AD30: =SUM(AD12:AD29) -> 0 | AF30: =SUM(AF12:AF29) -> 0 | AH30: =SUM(AH12:AH29) -> 0 | AJ30: =SUM(AJ12:AJ29) -> 0 | AL30: =SUM(AL12:AL29) -> 0 | AN30: =SUM(AN12:AN29) -> 0 | AP30: =SUM(AP12:AP29) -> 0 | AR30: =SUM(AR12:AR29) -> 0 | AT30: =SUM(AT12:AT29) -> 0 | AV30: =SUM(AV12:AV29) -> 0 | AX30: =SUM(AX12:AX29) -> 0 | AZ30: =SUM(AZ12:AZ29) -> 0 | BB30: =SUM(BB12:BB29) -> 0 | BD30: =SUM(BD12:BD29) -> 0 | BF30: =SUM(BF12:BF29) -> 0
A32: Notes:
A33: Fringe Benefits are calculated based on the approved federal rate.
A34: Input the rate % from the below listed federal rates if the rate is other than the one listed.
A35: The approved Federal Fringe Benefit Rates are as follows:
A37: FY26 Fringe Rate/ Benefit Tiers
A38: 0 | B38: 0.46
A39: 40000 | B39: 0.39
A40: 70000 | B40: 0.31
A41: 150000 | B41: 0.26
A42: 230000 | B42: 0.2
A43: 500000 | B43: 0.13

Sheet 3 Other Direct Expenses
A2: ='1 Volume Projections'!B1 -> 00:00:00
A3: Other Direct Expenses
A4: ='2 Salary & Fringe'!A3:BI3 -> Fiscal Year 2026
A6: Please enter data in the blue highlighted cells
A7: Do not fill. These are automatically populated or protected.
C8: Service Description | Y8: Service Description
C9: ='1 Volume Projections'!B15 -> 0 | E9: ='1 Volume Projections'!B16 -> 0 | G9: ='1 Volume Projections'!B17 -> 0 | I9: ='1 Volume Projections'!B18 -> 0 | K9: ='1 Volume Projections'!B19 -> 0 | M9: ='1 Volume Projections'!B20 -> 0 | O9: ='1 Volume Projections'!B21 -> 0 | Q9: ='1 Volume Projections'!B22 -> 0 | S9: ='1 Volume Projections'!B23 -> 0 | U9: ='1 Volume Projections'!B24 -> 0 | W9: ='1 Volume Projections'!B25 -> 0 | Y9: ='1 Volume Projections'!B26 -> 0 | AA9: ='1 Volume Projections'!B27 -> 0 | AC9: ='1 Volume Projections'!B28 -> 0 | AE9: ='1 Volume Projections'!B29 -> 0 | AG9: ='1 Volume Projections'!B30 -> 0 | AI9: ='1 Volume Projections'!B31 -> 0 | AK9: ='1 Volume Projections'!B32 -> 0 | AM9: ='1 Volume Projections'!B33 -> 0 | AO9: ='1 Volume Projections'!B23 -> 0 | AQ9: ='1 Volume Projections'!B35 -> 0 | AS9: ='1 Volume Projections'!B36 -> 0 | AU9: ='1 Volume Projections'!B37 -> 0 | AW9: ='1 Volume Projections'!B38 -> 0 | AY9: ='1 Volume Projections'!B39 -> 0
A10: Description of Service or Supply | B10: Total | C10: Service #1 | D10: % of Time | E10: Service #2 | F10: % of Time | G10: Service #3 | H10: % of Time | I10: Service #4 | J10: % of Time | K10: Service #5 | L10: % of Time | M10: Service #6 | N10: % of Time | O10: Service #7 | P10: % of Time | Q10: Service #8 | R10: % of Time | S10: Service #9 | T10: % of Time | U10: Service #10 | V10: % of Time | W10: Service #11 | X10: % of Time | Y10: Service #12 | Z10: % of Time | AA10: Service #13 | AB10: % of Time | AC10: Service #14 | AD10: % of Time | AE10: Service #15 | AF10: % of Time | AG10: Service #16 | AH10: % of Time | AI10: Service #17 | AJ10: % of Time | AK10: Service #18 | AL10: % of Time | AM10: Service #19 | AN10: % of Time | AO10: Service #20 | AP10: % of Time | AQ10: Service #21 | AR10: % of Time | AS10: Service #22 | AT10: % of Time | AU10: Service #23 | AV10: % of Time | AW10: Service #24 | AX10: % of Time | AY10: Service #25 | AZ10: % of Time | BA10: Check Total | BB10: Comments
A11: Example: | BB11: Check Total Must Equal 100%
A12: Equipment Maintenance Agreement | B12: 5000 | C12: =B12*D12 -> 5000 | D12: 1 | E12: =B12*F12 -> 0 | F12: 0 | G12: =B12*H12 -> 0 | H12: 0 | I12: =B12*J12 -> 0 | J12: 0 | K12: =B12*L12 -> 0 | L12: 0 | M12: =B12*N12 -> 0 | N12: 0 | O12: =B12*P12 -> 0 | P12: 0 | Q12: =B12*R12 -> 0 | R12: 0 | S12: =B12*T12 -> 0 | T12: 0 | U12: =B12*V12 -> 0 | V12: 0 | W12: =B12*X12 -> 0 | X12: 0 | Y12: =B12*Z12 -> 0 | Z12: 0 | AA12: =B12*AB12 -> 0 | AB12: 0 | AC12: =B12*AD12 -> 0 | AD12: 0 | AE12: =B12*AF12 -> 0 | AF12: 0 | AG12: =B12*AH12 -> 0 | AH12: 0 | AI12: =B12*AJ12 -> 0 | AJ12: 0 | AK12: =B12*AL12 -> 0 | AL12: 0 | AM12: =B12*AN12 -> 0 | AN12: 0 | AO12: =B12*AP12 -> 0 | AP12: 0 | AQ12: =B12*AR12 -> 0 | AR12: 0 | AS12: =B12*AT12 -> 0 | AT12: 0 | AU12: =B12*AV12 -> 0 | AV12: 0 | AW12: =B12*AX12 -> 0 | AX12: 0 | AY12: =B12*AZ12 -> 0 | AZ12: 0 | BA12: =+D12+F12+H12+J12+L12+N12+P12+R12+T12+V12+X12+Z12+AB12+AD12+AF12+AH12+AJ12+AL12+AN12+AP12+AR12+AT12+AV12+AX12+AZ12 -> 1
A13: Supplies (e.g. equipment supplies) | B13: 1200 | C13: =B13*D13 -> 600 | D13: 0.5 | E13: =B13*F13 -> 600 | F13: 0.5 | G13: =B13*H13 -> 0 | H13: 0 | I13: =B13*J13 -> 0 | J13: 0 | K13: =B13*L13 -> 0 | L13: 0 | M13: =B13*N13 -> 0 | N13: 0 | O13: =B13*P13 -> 0 | P13: 0 | Q13: =B13*R13 -> 0 | R13: 0 | S13: =B13*T13 -> 0 | T13: 0 | U13: =B13*V13 -> 0 | V13: 0 | W13: =B13*X13 -> 0 | X13: 0 | Y13: =B13*Z13 -> 0 | Z13: 0 | AA13: =B13*AB13 -> 0 | AB13: 0 | AC13: =B13*AD13 -> 0 | AD13: 0 | AE13: =B13*AF13 -> 0 | AF13: 0 | AG13: =B13*AH13 -> 0 | AH13: 0 | AI13: =B13*AJ13 -> 0 | AJ13: 0 | AK13: =B13*AL13 -> 0 | AL13: 0 | AM13: =B13*AN13 -> 0 | AN13: 0 | AO13: =B13*AP13 -> 0 | AP13: 0 | AQ13: =B13*AR13 -> 0 | AR13: 0 | AS13: =B13*AT13 -> 0 | AT13: 0 | AU13: =B13*AV13 -> 0 | AV13: 0 | AW13: =B13*AX13 -> 0 | AX13: 0 | AY13: =B13*AZ13 -> 0 | AZ13: 0 | BA13: 1
A14: Materials & Supplies, (ex. Service 1) | C14: =B14*D14 -> 0 | E14: =$B14*F14 -> 0 | G14: =$B14*H14 -> 0 | I14: =$B14*J14 -> 0 | K14: =$B14*L14 -> 0 | M14: =$B14*N14 -> 0 | O14: =$B14*P14 -> 0 | Q14: =$B14*R14 -> 0 | S14: =$B14*T14 -> 0 | U14: =$B14*V14 -> 0 | W14: =$B14*X14 -> 0 | Y14: =$B14*Z14 -> 0 | AA14: =$B14*AB14 -> 0 | AC14: =$B14*AD14 -> 0 | AE14: =$B14*AF14 -> 0 | AG14: =$B14*AH14 -> 0 | AI14: =$B14*AJ14 -> 0 | AK14: =$B14*AL14 -> 0 | AM14: =$B14*AN14 -> 0 | AO14: =$B14*AP14 -> 0 | AQ14: =$B14*AR14 -> 0 | AS14: =$B14*AT14 -> 0 | AU14: =$B14*AV14 -> 0 | AW14: =$B14*AX14 -> 0 | AY14: =$B14*AZ14 -> 0 | BA14: =+D14+F14+H14+J14+L14+N14+P14+R14+T14+V14+X14+Z14+AB14+AD14+AF14+AH14+AJ14+AL14+AN14+AP14+AR14+AT14+AV14+AX14+AZ14 -> 0
A15: Materials & Supplies, (ex. Service 2) | C15: 0 | E15: 0 | G15: 0 | I15: 0 | K15: 0 | M15: 0 | O15: 0 | Q15: 0 | S15: 0 | U15: 0 | W15: =$B15*X15 -> 0 | Y15: 0 | AA15: 0 | AC15: 0 | AE15: 0 | AG15: 0 | AI15: 0 | AK15: 0 | AM15: 0 | AO15: 0 | AQ15: 0 | AS15: 0 | AU15: 0 | AW15: 0 | AY15: 0 | BA15: =+D15+F15+H15+J15+L15+N15+P15+R15+T15+V15+X15+Z15+AB15+AD15+AF15+AH15+AJ15+AL15+AN15+AP15+AR15+AT15+AV15+AX15+AZ15 -> 0
A16: Materials & Supplies, (ex. Service 3) | C16: 0 | E16: 0 | G16: 0 | I16: 0 | K16: 0 | M16: 0 | O16: 0 | Q16: 0 | S16: 0 | U16: 0 | W16: 0 | Y16: 0 | AA16: 0 | AC16: 0 | AE16: 0 | AG16: 0 | AI16: 0 | AK16: 0 | AM16: 0 | AO16: 0 | AQ16: 0 | AS16: 0 | AU16: 0 | AW16: 0 | AY16: 0 | BA16: 0
A17: Maintenance & Repair, (ex. Machine 1) | C17: 0 | E17: 0 | G17: 0 | I17: 0 | K17: 0 | M17: 0 | O17: 0 | Q17: 0 | S17: 0 | U17: 0 | W17: 0 | Y17: 0 | AA17: 0 | AC17: 0 | AE17: 0 | AG17: 0 | AI17: 0 | AK17: 0 | AM17: 0 | AO17: 0 | AQ17: 0 | AS17: 0 | AU17: 0 | AW17: 0 | AY17: 0 | BA17: 0
A18: Maintenance & Repair, (ex. Machine 2) | C18: 0 | E18: 0 | G18: 0 | I18: 0 | K18: 0 | M18: 0 | O18: 0 | Q18: 0 | S18: 0 | U18: 0 | W18: 0 | Y18: 0 | AA18: 0 | AC18: 0 | AE18: 0 | AG18: 0 | AI18: 0 | AK18: 0 | AM18: 0 | AO18: 0 | AQ18: 0 | AS18: 0 | AU18: 0 | AW18: 0 | AY18: 0 | BA18: 0
A19: Maintenance & Repair, (ex. Machine 3) | C19: 0 | E19: 0 | G19: 0 | I19: 0 | K19: 0 | M19: 0 | O19: 0 | Q19: 0 | S19: 0 | U19: 0 | W19: 0 | Y19: 0 | AA19: 0 | AC19: 0 | AE19: 0 | AG19: 0 | AI19: 0 | AK19: 0 | AM19: 0 | AO19: 0 | AQ19: 0 | AS19: 0 | AU19: 0 | AW19: 0 | AY19: 0 | BA19: 0
A20: Operating Expenses, Other | C20: 0 | E20: 0 | G20: 0 | I20: 0 | K20: 0 | M20: 0 | O20: 0 | Q20: 0 | S20: 0 | U20: 0 | W20: 0 | Y20: 0 | AA20: 0 | AC20: 0 | AE20: 0 | AG20: 0 | AI20: 0 | AK20: 0 | AM20: 0 | AO20: 0 | AQ20: 0 | AS20: 0 | AU20: 0 | AW20: 0 | AY20: 0 | BA20: 0
A21: Other Contracted Services | C21: 0 | E21: 0 | G21: 0 | I21: 0 | K21: 0 | M21: 0 | O21: 0 | Q21: 0 | S21: 0 | U21: 0 | W21: =$B21*X21 -> 0 | Y21: =$B21*Z21 -> 0 | AA21: 0 | AC21: =$B21*AD21 -> 0 | AE21: 0 | AG21: 0 | AI21: =$B21*AJ21 -> 0 | AK21: =$B21*AL21 -> 0 | AM21: 0 | AO21: 0 | AQ21: =$B21*AR21 -> 0 | AS21: =$B21*AT21 -> 0 | AU21: =$B21*AV21 -> 0 | AW21: 0 | AY21: 0 | BA21: 0
A22: Travel Expenses | C22: 0 | E22: 0 | G22: 0 | I22: 0 | K22: 0 | M22: 0 | O22: 0 | Q22: 0 | S22: 0 | U22: 0 | W22: =$B22*X22 -> 0 | Y22: =$B22*Z22 -> 0 | AA22: 0 | AC22: =$B22*AD22 -> 0 | AE22: =$B22*AF22 -> 0 | AG22: =$B22*AH22 -> 0 | AI22: =$B22*AJ22 -> 0 | AK22: =$B22*AL22 -> 0 | AM22: 0 | AO22: =$B22*AP22 -> 0 | AQ22: =$B22*AR22 -> 0 | AS22: =$B22*AT22 -> 0 | AU22: =$B22*AV22 -> 0 | AW22: =$B22*AX22 -> 0 | AY22: 0 | BA22: 0
C23: 0 | E23: 0 | G23: 0 | I23: 0 | K23: 0 | M23: 0 | O23: 0 | Q23: 0 | S23: 0 | U23: 0 | W23: =$B23*X23 -> 0 | Y23: =$B23*Z23 -> 0 | AA23: =$B23*AB23 -> 0 | AC23: =$B23*AD23 -> 0 | AE23: =$B23*AF23 -> 0 | AG23: =$B23*AH23 -> 0 | AI23: =$B23*AJ23 -> 0 | AK23: =$B23*AL23 -> 0 | AM23: =$B23*AN23 -> 0 | AO23: =$B23*AP23 -> 0 | AQ23: =$B23*AR23 -> 0 | AS23: =$B23*AT23 -> 0 | AU23: =$B23*AV23 -> 0 | AW23: =$B23*AX23 -> 0 | AY23: =$B23*AZ23 -> 0 | BA23: 0
C24: 0 | E24: 0 | G24: 0 | I24: 0 | K24: 0 | M24: 0 | O24: 0 | Q24: 0 | S24: 0 | U24: 0 | W24: 0 | Y24: =$B24*Z24 -> 0 | AA24: =$B24*AB24 -> 0 | AC24: =$B24*AD24 -> 0 | AE24: =$B24*AF24 -> 0 | AG24: =$B24*AH24 -> 0 | AI24: =$B24*AJ24 -> 0 | AK24: =$B24*AL24 -> 0 | AM24: =$B24*AN24 -> 0 | AO24: =$B24*AP24 -> 0 | AQ24: =$B24*AR24 -> 0 | AS24: =$B24*AT24 -> 0 | AU24: =$B24*AV24 -> 0 | AW24: =$B24*AX24 -> 0 | AY24: =$B24*AZ24 -> 0 | BA24: 0
C25: =B25*D25 -> 0 | E25: =$B25*F25 -> 0 | G25: =$B25*H25 -> 0 | I25: =$B25*J25 -> 0 | K25: =$B25*L25 -> 0 | M25: =$B25*N25 -> 0 | O25: =$B25*P25 -> 0 | Q25: =$B25*R25 -> 0 | S25: =$B25*T25 -> 0 | U25: =$B25*V25 -> 0 | W25: 0 | Y25: 0 | AA25: 0 | AC25: 0 | AE25: 0 | AG25: 0 | AI25: 0 | AK25: 0 | AM25: 0 | AO25: 0 | AQ25: 0 | AS25: 0 | AU25: 0 | AW25: 0 | AY25: 0 | BA25: 0
C26: 0 | E26: 0 | G26: 0 | I26: 0 | K26: 0 | M26: 0 | O26: 0 | Q26: 0 | S26: 0 | U26: 0 | W26: 0 | Y26: 0 | AA26: 0 | AC26: 0 | AE26: 0 | AG26: 0 | AI26: 0 | AK26: 0 | AM26: 0 | AO26: 0 | AQ26: 0 | AS26: 0 | AU26: 0 | AW26: 0 | AY26: 0 | BA26: 0
C27: =B27*D27 -> 0 | E27: =$B27*F27 -> 0 | G27: =$B27*H27 -> 0 | I27: =$B27*J27 -> 0 | K27: =$B27*L27 -> 0 | M27: =$B27*N27 -> 0 | O27: =$B27*P27 -> 0 | Q27: =$B27*R27 -> 0 | S27: =$B27*T27 -> 0 | U27: =$B27*V27 -> 0 | W27: 0 | Y27: 0 | AA27: 0 | AC27: 0 | AE27: 0 | AG27: 0 | AI27: 0 | AK27: 0 | AM27: 0 | AO27: 0 | AQ27: 0 | AS27: 0 | AU27: 0 | AW27: 0 | AY27: 0 | BA27: 0
C28: 0 | E28: 0 | G28: 0 | I28: 0 | K28: 0 | M28: 0 | O28: 0 | Q28: 0 | S28: 0 | U28: 0 | W28: 0 | Y28: 0 | AA28: 0 | AC28: 0 | AE28: 0 | AG28: 0 | AI28: 0 | AK28: 0 | AM28: 0 | AO28: 0 | AQ28: 0 | AS28: 0 | AU28: 0 | AW28: 0 | AY28: 0 | BA28: 0
C29: 0 | E29: 0 | G29: 0 | I29: 0 | K29: 0 | M29: 0 | O29: 0 | Q29: 0 | S29: 0 | U29: 0 | W29: 0 | Y29: 0 | AA29: 0 | AC29: 0 | AE29: 0 | AG29: 0 | AI29: 0 | AK29: 0 | AM29: 0 | AO29: 0 | AQ29: 0 | AS29: 0 | AU29: 0 | AW29: 0 | AY29: 0 | BA29: 0
C30: 0 | E30: 0 | G30: 0 | I30: 0 | K30: 0 | M30: 0 | O30: 0 | Q30: 0 | S30: 0 | U30: 0 | W30: 0 | Y30: 0 | AA30: 0 | AC30: 0 | AE30: 0 | AG30: 0 | AI30: 0 | AK30: 0 | AM30: 0 | AO30: 0 | AQ30: 0 | AS30: 0 | AU30: 0 | AW30: 0 | AY30: 0 | BA30: 0
C31: 0 | E31: 0 | G31: 0 | I31: 0 | K31: 0 | M31: 0 | O31: 0 | Q31: 0 | S31: 0 | U31: 0 | W31: 0 | Y31: 0 | AA31: 0 | AC31: 0 | AE31: 0 | AG31: 0 | AI31: 0 | AK31: 0 | AM31: 0 | AO31: 0 | AQ31: 0 | AS31: 0 | AU31: 0 | AW31: 0 | AY31: 0 | BA31: 0
C32: 0 | E32: 0 | G32: 0 | I32: 0 | K32: 0 | M32: 0 | O32: 0 | Q32: 0 | S32: 0 | U32: 0 | W32: 0 | Y32: 0 | AA32: 0 | AC32: 0 | AE32: 0 | AG32: 0 | AI32: 0 | AK32: 0 | AM32: 0 | AO32: 0 | AQ32: 0 | AS32: 0 | AU32: 0 | AW32: 0 | AY32: 0 | BA32: 0
C33: 0 | E33: 0 | G33: 0 | I33: 0 | K33: 0 | M33: 0 | O33: 0 | Q33: 0 | S33: 0 | U33: 0 | W33: 0 | Y33: 0 | AA33: 0 | AC33: 0 | AE33: 0 | AG33: 0 | AI33: 0 | AK33: 0 | AM33: 0 | AO33: 0 | AQ33: 0 | AS33: 0 | AU33: 0 | AW33: 0 | AY33: 0 | BA33: 0
C34: 0 | E34: 0 | G34: 0 | I34: 0 | K34: 0 | M34: 0 | O34: 0 | Q34: 0 | S34: 0 | U34: 0 | W34: 0 | Y34: 0 | AA34: 0 | AC34: 0 | AE34: 0 | AG34: 0 | AI34: 0 | AK34: 0 | AM34: 0 | AO34: 0 | AQ34: 0 | AS34: 0 | AU34: 0 | AW34: 0 | AY34: 0 | BA34: 0
C35: 0 | E35: 0 | G35: 0 | I35: 0 | K35: 0 | M35: 0 | O35: 0 | Q35: 0 | S35: 0 | U35: 0 | W35: 0 | Y35: 0 | AA35: 0 | AC35: 0 | AE35: 0 | AG35: 0 | AI35: 0 | AK35: 0 | AM35: 0 | AO35: 0 | AQ35: 0 | AS35: 0 | AU35: 0 | AW35: 0 | AY35: 0 | BA35: 0
C36: 0 | E36: 0 | G36: 0 | I36: 0 | K36: 0 | M36: 0 | O36: 0 | Q36: 0 | S36: 0 | U36: 0 | W36: 0 | Y36: 0 | AA36: 0 | AC36: 0 | AE36: 0 | AG36: 0 | AI36: 0 | AK36: 0 | AM36: 0 | AO36: 0 | AQ36: 0 | AS36: 0 | AU36: 0 | AW36: 0 | AY36: 0 | BA36: 0
C37: 0 | E37: 0 | G37: 0 | I37: 0 | K37: 0 | M37: 0 | O37: 0 | Q37: 0 | S37: 0 | U37: 0 | W37: 0 | Y37: 0 | AA37: 0 | AC37: 0 | AE37: 0 | AG37: 0 | AI37: 0 | AK37: 0 | AM37: 0 | AO37: 0 | AQ37: 0 | AS37: 0 | AU37: 0 | AW37: 0 | AY37: 0 | BA37: 0
C38: 0 | E38: 0 | G38: 0 | I38: 0 | K38: 0 | M38: 0 | O38: 0 | Q38: 0 | S38: 0 | U38: 0 | W38: 0 | Y38: 0 | AA38: 0 | AC38: 0 | AE38: 0 | AG38: 0 | AI38: 0 | AK38: 0 | AM38: 0 | AO38: 0 | AQ38: 0 | AS38: 0 | AU38: 0 | AW38: 0 | AY38: 0 | BA38: 0
C39: 0 | E39: 0 | G39: 0 | I39: 0 | K39: 0 | M39: 0 | O39: 0 | Q39: 0 | S39: 0 | U39: 0 | W39: 0 | Y39: 0 | AA39: 0 | AC39: 0 | AE39: 0 | AG39: 0 | AI39: 0 | AK39: 0 | AM39: 0 | AO39: 0 | AQ39: 0 | AS39: 0 | AU39: 0 | AW39: 0 | AY39: 0 | BA39: 0
C40: 0 | E40: 0 | G40: 0 | I40: 0 | K40: 0 | M40: 0 | O40: 0 | Q40: 0 | S40: 0 | U40: 0 | W40: 0 | Y40: 0 | AA40: 0 | AC40: 0 | AE40: 0 | AG40: 0 | AI40: 0 | AK40: 0 | AM40: 0 | AO40: 0 | AQ40: 0 | AS40: 0 | AU40: 0 | AW40: 0 | AY40: 0 | BA40: 0
C41: 0 | E41: 0 | G41: 0 | I41: 0 | K41: 0 | M41: 0 | O41: 0 | Q41: 0 | S41: 0 | U41: 0 | W41: 0 | Y41: 0 | AA41: 0 | AC41: 0 | AE41: 0 | AG41: 0 | AI41: 0 | AK41: 0 | AM41: 0 | AO41: 0 | AQ41: 0 | AS41: 0 | AU41: 0 | AW41: 0 | AY41: 0 | BA41: 0
C42: 0 | E42: 0 | G42: 0 | I42: 0 | K42: 0 | M42: 0 | O42: 0 | Q42: 0 | S42: 0 | U42: 0 | W42: 0 | Y42: 0 | AA42: 0 | AC42: 0 | AE42: 0 | AG42: 0 | AI42: 0 | AK42: 0 | AM42: 0 | AO42: 0 | AQ42: 0 | AS42: 0 | AU42: 0 | AW42: 0 | AY42: 0 | BA42: 0
C43: 0 | E43: =$B43*F43 -> 0 | G43: =$B43*H43 -> 0 | I43: =$B43*J43 -> 0 | K43: =$B43*L43 -> 0 | M43: =$B43*N43 -> 0 | O43: =$B43*P43 -> 0 | Q43: =$B43*R43 -> 0 | S43: =$B43*T43 -> 0 | U43: 0 | W43: 0 | Y43: 0 | AA43: 0 | AC43: 0 | AE43: 0 | AG43: 0 | AI43: 0 | AK43: 0 | AM43: 0 | AO43: 0 | AQ43: 0 | AS43: 0 | AU43: 0 | AW43: 0 | AY43: 0 | BA43: 0
C44: 0 | E44: 0 | G44: 0 | I44: 0 | K44: 0 | M44: 0 | O44: 0 | Q44: 0 | S44: 0 | U44: 0 | W44: 0 | Y44: 0 | AA44: 0 | AC44: 0 | AE44: 0 | AG44: 0 | AI44: 0 | AK44: 0 | AM44: 0 | AO44: 0 | AQ44: 0 | AS44: 0 | AU44: 0 | AW44: 0 | AY44: 0 | BA44: 0
C45: 0 | E45: 0 | G45: 0 | I45: 0 | K45: 0 | M45: 0 | O45: 0 | Q45: 0 | S45: 0 | U45: 0 | W45: 0 | Y45: 0 | AA45: 0 | AC45: 0 | AE45: 0 | AG45: 0 | AI45: 0 | AK45: 0 | AM45: 0 | AO45: 0 | AQ45: 0 | AS45: 0 | AU45: 0 | AW45: 0 | AY45: 0 | BA45: 0
C46: 0 | E46: 0 | G46: 0 | I46: 0 | K46: 0 | M46: 0 | O46: 0 | Q46: 0 | S46: 0 | U46: 0 | W46: 0 | Y46: 0 | AA46: 0 | AC46: 0 | AE46: 0 | AG46: 0 | AI46: 0 | AK46: 0 | AM46: 0 | AO46: 0 | AQ46: 0 | AS46: 0 | AU46: 0 | AW46: 0 | AY46: 0 | BA46: 0
C47: 0 | E47: 0 | G47: 0 | I47: 0 | K47: 0 | M47: 0 | O47: 0 | Q47: 0 | S47: 0 | U47: 0 | W47: 0 | Y47: 0 | AA47: 0 | AC47: 0 | AE47: 0 | AG47: 0 | AI47: 0 | AK47: 0 | AM47: 0 | AO47: 0 | AQ47: 0 | AS47: 0 | AU47: 0 | AW47: 0 | AY47: 0 | BA47: 0
C48: 0 | E48: 0 | G48: 0 | I48: 0 | K48: 0 | M48: 0 | O48: 0 | Q48: 0 | S48: 0 | U48: 0 | W48: 0 | Y48: 0 | AA48: 0 | AC48: 0 | AE48: 0 | AG48: 0 | AI48: 0 | AK48: 0 | AM48: 0 | AO48: 0 | AQ48: 0 | AS48: 0 | AU48: 0 | AW48: 0 | AY48: 0 | BA48: 0
C49: 0 | E49: 0 | G49: 0 | I49: 0 | K49: 0 | M49: 0 | O49: 0 | Q49: 0 | S49: 0 | U49: 0 | W49: 0 | Y49: 0 | AA49: 0 | AC49: 0 | AE49: 0 | AG49: 0 | AI49: 0 | AK49: 0 | AM49: 0 | AO49: 0 | AQ49: 0 | AS49: 0 | AU49: 0 | AW49: 0 | AY49: 0 | BA49: 0
C50: 0 | E50: 0 | G50: 0 | I50: 0 | K50: 0 | M50: 0 | O50: 0 | Q50: 0 | S50: 0 | U50: 0 | W50: 0 | Y50: 0 | AA50: 0 | AC50: 0 | AE50: 0 | AG50: 0 | AI50: 0 | AK50: 0 | AM50: 0 | AO50: 0 | AQ50: 0 | AS50: 0 | AU50: 0 | AW50: 0 | AY50: 0 | BA50: 0
B51: =SUM(B14:B50) -> 0 | C51: =SUM(C14:C50) -> 0 | E51: =SUM(E14:E50) -> 0 | G51: =SUM(G14:G50) -> 0 | I51: =SUM(I14:I50) -> 0 | K51: =SUM(K14:K50) -> 0 | M51: =SUM(M14:M50) -> 0 | O51: =SUM(O14:O50) -> 0 | Q51: =SUM(Q14:Q50) -> 0 | S51: =SUM(S14:S50) -> 0 | U51: =SUM(U14:U50) -> 0 | W51: =SUM(W14:W50) -> 0 | Y51: =SUM(Y14:Y50) -> 0 | AA51: =SUM(AA14:AA50) -> 0 | AC51: =SUM(AC14:AC50) -> 0 | AE51: =SUM(AE14:AE50) -> 0 | AG51: =SUM(AG14:AG50) -> 0 | AI51: =SUM(AI14:AI50) -> 0 | AK51: =SUM(AK14:AK50) -> 0 | AM51: =SUM(AM14:AM50) -> 0 | AO51: =SUM(AO14:AO50) -> 0 | AQ51: =SUM(AQ14:AQ50) -> 0 | AS51: =SUM(AS14:AS50) -> 0 | AU51: =SUM(AU14:AU50) -> 0 | AW51: =SUM(AW14:AW50) -> 0 | AY51: =SUM(AY14:AY50) -> 0

Sheet 5 Equipment Depreciation
A2: ='1 Volume Projections'!B1 -> 00:00:00
A3: Equipment Depreciation
A4: ='2 Salary & Fringe'!A3:BI3 -> Fiscal Year 2026
A5: Please enter data in the blue highlighted cells
A6: Do not fill. These are automatically populated or protected.
A7: This tab is for purchased equpiment only. If you are leasing your equipment, please enter the expense on tab 3 Other Direct Expenses | K7: Service Description | AG7: Service Description
K8: ='1 Volume Projections'!B15 -> 0 | M8: ='1 Volume Projections'!B16 -> 0 | O8: ='1 Volume Projections'!B17 -> 0 | Q8: ='1 Volume Projections'!B18 -> 0 | S8: ='1 Volume Projections'!B19 -> 0 | U8: ='1 Volume Projections'!B20 -> 0 | W8: ='1 Volume Projections'!B21 -> 0 | Y8: ='1 Volume Projections'!B22 -> 0 | AA8: ='1 Volume Projections'!B23 -> 0 | AC8: ='1 Volume Projections'!B24 -> 0 | AE8: ='1 Volume Projections'!B25 -> 0 | AG8: ='1 Volume Projections'!B26 -> 0 | AI8: ='1 Volume Projections'!B27 -> 0 | AK8: ='1 Volume Projections'!B28 -> 0 | AM8: ='1 Volume Projections'!B29 -> 0 | AO8: ='1 Volume Projections'!B30 -> 0 | AQ8: ='1 Volume Projections'!B31 -> 0 | AS8: ='1 Volume Projections'!B32 -> 0 | AU8: ='1 Volume Projections'!B33 -> 0 | AW8: ='1 Volume Projections'!B34 -> 0 | AY8: ='1 Volume Projections'!B35 -> 0 | BA8: ='1 Volume Projections'!B36 -> 0 | BC8: ='1 Volume Projections'!B37 -> 0 | BE8: ='1 Volume Projections'!B38 -> 0 | BG8: ='1 Volume Projections'!B39 -> 0
A9: Equipment Description | B9: Source of funds for Purchase | C9: Serial # | D9: Location | E9: ID (Tag) # | F9: Acquisition Date | G9: Purchase Price | H9: Accum. Depr.** | I9: Useful Life | J9: Annual Depr.** | K9: Service #1 | L9: % of Usage | M9: Service #2 | N9: % of Usage | O9: Service #3 | P9: % of Usage | Q9: Service #4 | R9: % of Usage | S9: Service #5 | T9: % of Usage | U9: Service #6 | V9: % of Usage | W9: Service #7 | X9: % of Usage | Y9: Service #8 | Z9: % of Usage | AA9: Service #9 | AB9: % of Usage | AC9: Service #10 | AD9: % of Usage | AE9: Service #11 | AF9: % of Usage | AG9: Service #12 | AH9: % of Usage | AI9: Service #13 | AJ9: % of Usage | AK9: Service #14 | AL9: % of Usage | AM9: Service #15 | AN9: % of Usage | AO9: Service #16 | AP9: % of Usage | AQ9: Service #17 | AR9: % of Usage | AS9: Service #18 | AT9: % of Usage | AU9: Service #19 | AV9: % of Usage | AW9: Service #20 | AX9: % of Usage | AY9: Service #21 | AZ9: % of Usage | BA9: Service #22 | BB9: % of Usage | BC9: Service #23 | BD9: % of Usage | BE9: Service #24 | BF9: % of Usage | BG9: Service #25 | BH9: % of Usage | BI9: Check Total | BJ9: Comments
A10: Example: | BJ10: Check Total Must Equal 100%
A11: Ultraviolet/Visible spectrophotometer | C11: ABC12345 | D11: 00499999 | E11: 888555 | F11: 2012-01-01 | G11: 85000 | H11: 15937.5 | I11: 8 | J11: =IF(G11-H11<G11/I11,G11-H11,G11/I11) -> 10625 | K11: =J11*L11 -> 10625 | L11: 1 | M11: =J11*N11 -> 0 | N11: 0 | O11: =J11*P11 -> 0 | P11: 0 | Q11: =J11*R11 -> 0 | R11: 0 | S11: =J11*T11 -> 0 | T11: 0 | U11: =J11*V11 -> 0 | V11: 0 | W11: =J11*X11 -> 0 | X11: 0 | Y11: =J11*Z11 -> 0 | Z11: 0 | AA11: =J11*AB11 -> 0 | AB11: 0 | AC11: =J11*AD11 -> 0 | AD11: 0 | AE11: =J11*AF11 -> 0 | AF11: 0 | AG11: =J11*AH11 -> 0 | AH11: 0 | AI11: =J11*AJ11 -> 0 | AJ11: 0 | AK11: =J11*AL11 -> 0 | AL11: 0 | AM11: =J11*AN11 -> 0 | AN11: 0 | AO11: =J11*AP11 -> 0 | AP11: 0 | AQ11: =J11*AR11 -> 0 | AR11: 0 | AS11: =J11*AT11 -> 0 | AT11: 0 | AU11: =J11*AV11 -> 0 | AV11: 0 | AW11: =J11*AX11 -> 0 | AX11: 0 | AY11: =J11*AZ11 -> 0 | AZ11: 0 | BA11: =J11*BB11 -> 0 | BB11: 0 | BC11: =J11*BD11 -> 0 | BD11: 0 | BE11: =J11*BF11 -> 0 | BF11: 0 | BG11: =J11*BH11 -> 0 | BH11: 0 | BI11: =+L11+N11+P11+R11+T11+V11+X11+Z11+AB11+AD11+AF11+AH11+AJ11+AL11+AN11+AP11+AR11+AT11+AV11+AX11+AZ11+BB11+BD11+BF11+BH11 -> 1
I12: 1 | J12: 0 | K12: =$J12*L12 -> 0 | M12: =$J12*N12 -> 0 | O12: =$J12*P12 -> 0 | Q12: =$J12*R12 -> 0 | S12: =$J12*T12 -> 0 | U12: =$J12*V12 -> 0 | W12: =$J12*X12 -> 0 | Y12: =$J12*Z12 -> 0 | AA12: =$J12*AB12 -> 0 | AC12: =$J12*AD12 -> 0 | AE12: =$J12*AF12 -> 0 | AG12: =$J12*AH12 -> 0 | AI12: =$J12*AJ12 -> 0 | AK12: =$J12*AL12 -> 0 | AM12: =$J12*AN12 -> 0 | AO12: =$J12*AP12 -> 0 | AQ12: =$J12*AR12 -> 0 | AS12: =$J12*AT12 -> 0 | AU12: =$J12*AV12 -> 0 | AW12: =$J12*AX12 -> 0 | AY12: =$J12*AZ12 -> 0 | BA12: =$J12*BB12 -> 0 | BC12: =$J12*BD12 -> 0 | BE12: =$J12*BF12 -> 0 | BG12: =$J12*BH12 -> 0 | BI12: =+L12+N12+P12+R12+T12+V12+X12+Z12+AB12+AD12+AF12+AH12+AJ12+AL12+AN12+AP12+AR12+AT12+AV12+AX12+AZ12+BB12+BD12+BF12+BH12 -> 0
I13: 1 | J13: 0 | K13: 0 | M13: 0 | O13: 0 | Q13: 0 | S13: 0 | U13: 0 | W13: 0 | Y13: 0 | AA13: 0 | AC13: 0 | AE13: 0 | AG13: 0 | AI13: =$J13*AJ13 -> 0 | AK13: =$J13*AL13 -> 0 | AM13: =$J13*AN13 -> 0 | AO13: =$J13*AP13 -> 0 | AQ13: =$J13*AR13 -> 0 | AS13: =$J13*AT13 -> 0 | AU13: =$J13*AV13 -> 0 | AW13: =$J13*AX13 -> 0 | AY13: =$J13*AZ13 -> 0 | BA13: =$J13*BB13 -> 0 | BC13: =$J13*BD13 -> 0 | BE13: =$J13*BF13 -> 0 | BG13: =$J13*BH13 -> 0 | BI13: =+L13+N13+P13+R13+T13+V13+X13+Z13+AB13+AD13+AF13+AH13+AJ13+AL13+AN13+AP13+AR13+AT13+AV13+AX13+AZ13+BB13+BD13+BF13+BH13 -> 0
I14: 1 | J14: 0 | K14: 0 | M14: 0 | O14: 0 | Q14: 0 | S14: 0 | U14: 0 | W14: 0 | Y14: 0 | AA14: 0 | AC14: 0 | AE14: 0 | AG14: 0 | AI14: =$J14*AJ14 -> 0 | AK14: =$J14*AL14 -> 0 | AM14: =$J14*AN14 -> 0 | AO14: =$J14*AP14 -> 0 | AQ14: =$J14*AR14 -> 0 | AS14: =$J14*AT14 -> 0 | AU14: =$J14*AV14 -> 0 | AW14: =$J14*AX14 -> 0 | AY14: =$J14*AZ14 -> 0 | BA14: =$J14*BB14 -> 0 | BC14: =$J14*BD14 -> 0 | BE14: =$J14*BF14 -> 0 | BG14: =$J14*BH14 -> 0 | BI14: 0
I15: 1 | J15: 0 | K15: 0 | M15: 0 | O15: 0 | Q15: 0 | S15: 0 | U15: 0 | W15: 0 | Y15: 0 | AA15: 0 | AC15: 0 | AE15: 0 | AG15: 0 | AI15: =$J15*AJ15 -> 0 | AK15: =$J15*AL15 -> 0 | AM15: =$J15*AN15 -> 0 | AO15: =$J15*AP15 -> 0 | AQ15: =$J15*AR15 -> 0 | AS15: =$J15*AT15 -> 0 | AU15: =$J15*AV15 -> 0 | AW15: =$J15*AX15 -> 0 | AY15: =$J15*AZ15 -> 0 | BA15: =$J15*BB15 -> 0 | BC15: =$J15*BD15 -> 0 | BE15: =$J15*BF15 -> 0 | BG15: =$J15*BH15 -> 0 | BI15: 0
I16: 1 | J16: 0 | K16: 0 | M16: 0 | O16: 0 | Q16: 0 | S16: 0 | U16: 0 | W16: 0 | Y16: 0 | AA16: 0 | AC16: 0 | AE16: 0 | AG16: 0 | AI16: 0 | AK16: 0 | AM16: 0 | AO16: 0 | AQ16: 0 | AS16: 0 | AU16: 0 | AW16: 0 | AY16: 0 | BA16: 0 | BC16: 0 | BE16: 0 | BG16: 0 | BI16: 0
I17: 1 | J17: 0 | K17: 0 | M17: 0 | O17: 0 | Q17: 0 | S17: 0 | U17: 0 | W17: 0 | Y17: 0 | AA17: 0 | AC17: 0 | AE17: 0 | AG17: 0 | AI17: 0 | AK17: 0 | AM17: 0 | AO17: 0 | AQ17: 0 | AS17: 0 | AU17: 0 | AW17: 0 | AY17: 0 | BA17: 0 | BC17: 0 | BE17: 0 | BG17: 0 | BI17: 0
I18: 1 | J18: 0 | K18: 0 | M18: 0 | O18: 0 | Q18: 0 | S18: 0 | U18: 0 | W18: 0 | Y18: 0 | AA18: 0 | AC18: 0 | AE18: 0 | AG18: 0 | AI18: 0 | AK18: 0 | AM18: 0 | AO18: 0 | AQ18: 0 | AS18: 0 | AU18: 0 | AW18: 0 | AY18: 0 | BA18: 0 | BC18: 0 | BE18: 0 | BG18: 0 | BI18: 0
I19: 1 | J19: 0 | K19: 0 | M19: 0 | O19: 0 | Q19: 0 | S19: 0 | U19: 0 | W19: 0 | Y19: 0 | AA19: 0 | AC19: 0 | AE19: 0 | AG19: 0 | AI19: 0 | AK19: 0 | AM19: 0 | AO19: 0 | AQ19: 0 | AS19: 0 | AU19: 0 | AW19: 0 | AY19: 0 | BA19: 0 | BC19: 0 | BE19: 0 | BG19: 0 | BI19: 0
I20: 1 | J20: 0 | K20: =$J20*L20 -> 0 | M20: =$J20*N20 -> 0 | O20: 0 | Q20: =$J20*R20 -> 0 | S20: =$J20*T20 -> 0 | U20: =$J20*V20 -> 0 | W20: =$J20*X20 -> 0 | Y20: =$J20*Z20 -> 0 | AA20: =$J20*AB20 -> 0 | AC20: =$J20*AD20 -> 0 | AE20: =$J20*AF20 -> 0 | AG20: =$J20*AH20 -> 0 | AI20: 0 | AK20: 0 | AM20: 0 | AO20: 0 | AQ20: 0 | AS20: 0 | AU20: 0 | AW20: 0 | AY20: 0 | BA20: 0 | BC20: 0 | BE20: 0 | BG20: 0 | BI20: 0
I21: 1 | J21: 0 | K21: 0 | M21: 0 | O21: 0 | Q21: 0 | S21: 0 | U21: 0 | W21: 0 | Y21: 0 | AA21: 0 | AC21: 0 | AE21: 0 | AG21: 0 | AI21: 0 | AK21: 0 | AM21: 0 | AO21: 0 | AQ21: 0 | AS21: 0 | AU21: 0 | AW21: 0 | AY21: 0 | BA21: 0 | BC21: 0 | BE21: 0 | BG21: 0 | BI21: 0
I22: Totals | J22: =SUM(J12:J21) -> 0 | K22: =SUM(K12:K21) -> 0 | M22: =SUM(M12:M21) -> 0 | O22: =SUM(O12:O21) -> 0 | Q22: =SUM(Q12:Q21) -> 0 | S22: =SUM(S12:S21) -> 0 | U22: =SUM(U12:U21) -> 0 | W22: =SUM(W12:W21) -> 0 | Y22: =SUM(Y12:Y21) -> 0 | AA22: =SUM(AA12:AA21) -> 0 | AC22: =SUM(AC12:AC21) -> 0 | AE22: =SUM(AE12:AE21) -> 0 | AG22: =SUM(AG12:AG21) -> 0 | AI22: =SUM(AI12:AI21) -> 0 | AK22: =SUM(AK12:AK21) -> 0 | AM22: =SUM(AM12:AM21) -> 0 | AO22: =SUM(AO12:AO21) -> 0 | AQ22: =SUM(AQ12:AQ21) -> 0 | AS22: =SUM(AS12:AS21) -> 0 | AU22: =SUM(AU12:AU21) -> 0 | AW22: =SUM(AW12:AW21) -> 0 | AY22: =SUM(AY12:AY21) -> 0 | BA22: =SUM(BA12:BA21) -> 0 | BC22: =SUM(BC12:BC21) -> 0 | BE22: =SUM(BE12:BE21) -> 0 | BG22: =SUM(BG12:BG21) -> 0

Sheet 4 Admin Overhead Expenses
A2: ='1 Volume Projections'!B1 -> 00:00:00
A3: Administrative Overhead Expenses
A4: ='2 Salary & Fringe'!A3:BI3 -> Fiscal Year 2026
A6: Please enter data in the blue highlighted cells
A7: Do not fill. These are automatically populated or protected.
A8: Description of Service of Supply | B8: Annual Salary | C8: Effort % | D8: Effort Amount | E8: Fringe Benefit Rate % | F8: Fringe Benefits Amount | G8: Less: University Subsidy | H8: Other/Non-Salary | I8: Total | J8: Comments
A9: Example:
A10: Administrative Staff | B10: 50000 | C10: 1 | D10: =+B10*C10 -> 50000 | E10: 0.28 | F10: =+D10*E10 -> 14000 | G10: -40000 | I10: =SUM(D10:H10) -> 24000.28
A11: General Office Supplies | H11: 500 | I11: =SUM(D11:H11) -> 500
D12: =+B12*C12 -> 0 | F12: =+D12*E12 -> 0 | I12: =+D12+F12+G12+H12 -> 0
D13: 0 | F13: 0 | I13: 0
D14: 0 | F14: 0 | I14: 0
D15: 0 | F15: 0 | I15: 0
D16: 0 | F16: 0 | I16: 0
D17: =+B17*C17 -> 0 | F17: =+D17*E17 -> 0 | I17: 0
D18: 0 | F18: 0 | I18: =+D18+F18+G18+H18 -> 0
D19: 0 | F19: 0 | I19: 0
D20: =+B20*C20 -> 0 | F20: 0 | I20: 0
D21: =+B21*C21 -> 0 | F21: 0 | I21: 0
D22: 0 | F22: 0 | I22: 0
D23: 0 | F23: 0 | I23: 0
D24: 0 | F24: 0 | I24: 0
D25: 0 | F25: 0 | I25: 0
D26: 0 | F26: 0 | I26: 0
D27: 0 | F27: 0 | I27: 0
D28: 0 | F28: 0 | I28: 0
D29: 0 | F29: 0 | I29: 0
D30: 0 | F30: 0 | I30: 0
D31: 0 | F31: 0 | I31: 0
D32: 0 | F32: 0 | I32: 0
D33: 0 | F33: 0 | I33: 0
D34: 0 | F34: 0 | I34: 0
D35: 0 | F35: 0 | I35: 0
B36: =SUM(B12:B35) -> 0 | D36: =SUM(D12:D35) -> 0 | F36: =SUM(F12:F35) -> 0 | G36: =SUM(G12:G35) -> 0 | H36: =SUM(H12:H35) -> 0 | I36: =SUM(I12:I35) -> 0
A39: Notes:
A40: Fringe Benefits are calculated based on the approved federal rate.
A41: Input the rate % from the below listed federal rates if the rate is other than the one listed.
A42: The approved Federal Fringe Benefit Rates are as follows:
A44: FY26 Fringe Rate/ Benefit Tiers
A45: 0 | B45: 0.46
A46: 40000 | B46: 0.39
A47: 70000 | B47: 0.31
A48: 150000 | B48: 0.26
A49: 230000 | B49: 0.2
A50: 500000 | B50: 0.13

Sheet 6 Expense Summary
A2: ='1 Volume Projections'!B1 -> 00:00:00
A3: Summary of Expenses and Calculation of Rate
A4: ='2 Salary & Fringe'!A3:BI3 -> Fiscal Year 2026
A6: Please enter data in the blue highlighted cells
A7: Do not fill. These are automatically populated or protected.
I8: Service 1 | J8: Service 2 | K8: Service 3 | L8: Service 4 | M8: Service 5 | N8: Service 6 | O8: Service 7 | P8: Service 8 | Q8: Service 9 | R8: Service 10 | S8: Service 11 | T8: Service 12 | U8: Service 13 | V8: Service 14 | W8: Service 15 | X8: Service 16 | Y8: Service 17 | Z8: Service 18 | AA8: Service 19 | AB8: Service 20 | AC8: Service 21 | AD8: Service 22 | AE8: Service 23 | AF8: Service 24 | AG8: Service 25
A9: Allowable Costs: | D9: EXAMPLE | I9: ='1 Volume Projections'!B15 -> 0 | J9: ='1 Volume Projections'!B16 -> 0 | K9: ='1 Volume Projections'!B17 -> 0 | L9: ='1 Volume Projections'!B18 -> 0 | M9: ='1 Volume Projections'!B19 -> 0 | N9: ='1 Volume Projections'!B20 -> 0 | O9: ='1 Volume Projections'!B21 -> 0 | P9: ='1 Volume Projections'!B22 -> 0 | Q9: ='1 Volume Projections'!B23 -> 0 | R9: ='1 Volume Projections'!B24 -> 0 | S9: ='1 Volume Projections'!B25 -> 0 | T9: ='1 Volume Projections'!B26 -> 0 | U9: ='1 Volume Projections'!B27 -> 0 | V9: ='1 Volume Projections'!B28 -> 0 | W9: ='1 Volume Projections'!B29 -> 0 | X9: ='1 Volume Projections'!B30 -> 0 | Y9: ='1 Volume Projections'!B31 -> 0 | Z9: ='1 Volume Projections'!B32 -> 0 | AA9: ='1 Volume Projections'!B33 -> 0 | AB9: ='1 Volume Projections'!B34 -> 0 | AC9: ='1 Volume Projections'!B35 -> 0 | AD9: ='1 Volume Projections'!B36 -> 0 | AE9: ='1 Volume Projections'!B37 -> 0 | AF9: ='1 Volume Projections'!B38 -> 0 | AG9: ='1 Volume Projections'!B39 -> 0
D10: Service #1 | E10: Service #2 | F10: Total | AI10: Total
A12: Salary and Wage Expenses (From Salary and Wage Worksheet) | D12: =SUM('2 Salary & Fringe'!J11) -> 32160 | E12: =SUM('2 Salary & Fringe'!L11) -> 32160 | F12: =SUM(D12:E12) -> 64320 | G12: a | I12: =SUM('2 Salary & Fringe'!J30) -> 0 | J12: =SUM('2 Salary & Fringe'!L30) -> 0 | K12: =SUM('2 Salary & Fringe'!N30) -> 0 | L12: =SUM('2 Salary & Fringe'!P30) -> 0 | M12: =SUM('2 Salary & Fringe'!R30) -> 0 | N12: =SUM('2 Salary & Fringe'!T30) -> 0 | O12: =SUM('2 Salary & Fringe'!V30) -> 0 | P12: =SUM('2 Salary & Fringe'!X30) -> 0 | Q12: =SUM('2 Salary & Fringe'!Z30) -> 0 | R12: =SUM('2 Salary & Fringe'!AB30) -> 0 | S12: =SUM('2 Salary & Fringe'!AD30) -> 0 | T12: =SUM('2 Salary & Fringe'!AF30) -> 0 | U12: =SUM('2 Salary & Fringe'!AH30) -> 0 | V12: =SUM('2 Salary & Fringe'!AJ30) -> 0 | W12: =SUM('2 Salary & Fringe'!AL30) -> 0 | X12: =SUM('2 Salary & Fringe'!AN30) -> 0 | Y12: =SUM('2 Salary & Fringe'!AP30) -> 0 | Z12: =SUM('2 Salary & Fringe'!AR30) -> 0 | AA12: =SUM('2 Salary & Fringe'!AT30) -> 0 | AB12: =SUM('2 Salary & Fringe'!AV30) -> 0 | AC12: =SUM('2 Salary & Fringe'!AX30) -> 0 | AD12: =SUM('2 Salary & Fringe'!AZ30) -> 0 | AE12: =SUM('2 Salary & Fringe'!BB30) -> 0 | AF12: =SUM('2 Salary & Fringe'!BD30) -> 0 | AG12: =SUM('2 Salary & Fringe'!BF30) -> 0 | AI12: =SUM(I12:AG12) -> 0
A14: Other Expenses (From Other Expenses Worksheet) | D14: =SUM('3 Other Direct Expenses'!C12:C13) -> 5600 | E14: =SUM('3 Other Direct Expenses'!E12:E13) -> 600 | F14: =SUM(D14:E14) -> 6200 | G14: b | I14: =SUM('3 Other Direct Expenses'!C51) -> 0 | J14: =SUM('3 Other Direct Expenses'!E51) -> 0 | K14: =SUM('3 Other Direct Expenses'!G51) -> 0 | L14: =SUM('3 Other Direct Expenses'!I51) -> 0 | M14: =SUM('3 Other Direct Expenses'!K51) -> 0 | N14: =SUM('3 Other Direct Expenses'!M51) -> 0 | O14: =SUM('3 Other Direct Expenses'!O51) -> 0 | P14: =SUM('3 Other Direct Expenses'!Q51) -> 0 | Q14: =SUM('3 Other Direct Expenses'!S51) -> 0 | R14: =SUM('3 Other Direct Expenses'!U51) -> 0 | S14: =SUM('3 Other Direct Expenses'!W51) -> 0 | T14: =SUM('3 Other Direct Expenses'!Y51) -> 0 | U14: =SUM('3 Other Direct Expenses'!AA51) -> 0 | V14: =SUM('3 Other Direct Expenses'!AC51) -> 0 | W14: =SUM('3 Other Direct Expenses'!AE51) -> 0 | X14: =SUM('3 Other Direct Expenses'!AG51) -> 0 | Y14: =SUM('3 Other Direct Expenses'!AI51) -> 0 | Z14: =SUM('3 Other Direct Expenses'!AK51) -> 0 | AA14: =SUM('3 Other Direct Expenses'!AM51) -> 0 | AB14: =SUM('3 Other Direct Expenses'!AO51) -> 0 | AC14: =SUM('3 Other Direct Expenses'!AQ51) -> 0 | AD14: =SUM('3 Other Direct Expenses'!AS51) -> 0 | AE14: =SUM('3 Other Direct Expenses'!AU51) -> 0 | AF14: =SUM('3 Other Direct Expenses'!AW51) -> 0 | AG14: =SUM('3 Other Direct Expenses'!AY51) -> 0 | AI14: =SUM(I14:AG14) -> 0
A16: Depreciation* (From Equipment Depreciation Worksheet) | D16: =SUM('5 Equipment Depreciation'!K11) -> 10625 | E16: =SUM('5 Equipment Depreciation'!M11) -> 0 | F16: =SUM(D16:E16) -> 10625 | G16: c | I16: =SUM('5 Equipment Depreciation'!K22) -> 0 | J16: =SUM('5 Equipment Depreciation'!M22) -> 0 | K16: =SUM('5 Equipment Depreciation'!O22) -> 0 | L16: =SUM('5 Equipment Depreciation'!Q22) -> 0 | M16: =SUM('5 Equipment Depreciation'!S22) -> 0 | N16: =SUM('5 Equipment Depreciation'!U22) -> 0 | O16: =SUM('5 Equipment Depreciation'!W22) -> 0 | P16: =SUM('5 Equipment Depreciation'!Y22) -> 0 | Q16: =SUM('5 Equipment Depreciation'!AA22) -> 0 | R16: =SUM('5 Equipment Depreciation'!AC22) -> 0 | S16: =SUM('5 Equipment Depreciation'!AE22) -> 0 | T16: =SUM('5 Equipment Depreciation'!AG22) -> 0 | U16: =SUM('5 Equipment Depreciation'!AI22) -> 0 | V16: =SUM('5 Equipment Depreciation'!AK22) -> 0 | W16: =SUM('5 Equipment Depreciation'!AM22) -> 0 | X16: =SUM('5 Equipment Depreciation'!AO22) -> 0 | Y16: =SUM('5 Equipment Depreciation'!AQ22) -> 0 | Z16: =SUM('5 Equipment Depreciation'!AS22) -> 0 | AA16: =SUM('5 Equipment Depreciation'!AU22) -> 0 | AB16: =SUM('5 Equipment Depreciation'!AW22) -> 0 | AC16: =SUM('5 Equipment Depreciation'!AY22) -> 0 | AD16: =SUM('5 Equipment Depreciation'!BA22) -> 0 | AE16: =SUM('5 Equipment Depreciation'!BC22) -> 0 | AF16: =SUM('5 Equipment Depreciation'!BE22) -> 0 | AG16: =SUM('5 Equipment Depreciation'!BG22) -> 0 | AI16: =SUM(I16:AG16) -> 0
A18: Total Direct Operating Costs | D18: =SUM(D12:D17) -> 48385 | E18: =SUM(E12:E17) -> 32760 | F18: =SUM(D18:E18) -> 81145 | G18: d = a + b + c | I18: =SUM(I12:I16) -> 0 | J18: =SUM(J12:J16) -> 0 | K18: 0 | L18: 0 | M18: 0 | N18: 0 | O18: 0 | P18: 0 | Q18: 0 | R18: 0 | S18: 0 | T18: 0 | U18: 0 | V18: 0 | W18: 0 | X18: 0 | Y18: 0 | Z18: 0 | AA18: 0 | AB18: 0 | AC18: 0 | AD18: 0 | AE18: 0 | AF18: 0 | AG18: 0 | AI18: =SUM(AI12:AI17) -> 0
A19: Total Direct Operating Costs / NO depreciation | G19: d2 = a + b | I19: =SUM(I12:I14) -> 0 | J19: =SUM(J12:J14) -> 0 | K19: 0 | L19: 0 | M19: 0 | N19: 0 | O19: 0 | P19: 0 | Q19: 0 | R19: 0 | S19: 0 | T19: 0 | U19: 0 | V19: 0 | W19: 0 | X19: 0 | Y19: 0 | Z19: 0 | AA19: 0 | AB19: 0 | AC19: 0 | AD19: 0 | AE19: 0 | AF19: 0 | AG19: 0 | AI19: =SUM(AI12:AI14) -> 0
A21: Admin Overhead Expenses (From Admin Overhead Exps Worksheet) | F21: =SUM('4 Admin Overhead Expenses'!I10:I11) -> 24500.28 | G21: e | AI21: =SUM('4 Admin Overhead Expenses'!I36) -> 0
A22: Prior Year Deficit (Surplus) Adjustment | F22: 1000 | G22: f | AI22: 0
A24: Total Allowable Overhead | F24: =SUM(F21:F22) -> 25500.28 | G24: g = e + f | AI24: =SUM(AI21:AI23) -> 0
A25: % of Allowable Overhead to Total Direct Operating Costs | F25: =F24/SUM(F18) -> 0.3142557151 | G25: h = g / d | AI25: =IF(AI24<>0,AI24/SUM(AI18),0) -> 0
A26: % of Allowable Overhead to Total Direct Operating Costs/ ND | F26: =F25/SUM(F19) ->  | G26: h = g / d2 | AI26: =IF(AI24<>0,AI24/SUM(AI19),0) -> 0
A28: Administrative Overhead Allocation | D28: =D18*$F$25 -> 15205.26277 | E28: =E18*$F$25 -> 10295.01723 | F28: =SUM(D28:E28) -> 25500.28 | G28: i = d x h | I28: =I18*$AI$25 -> 0 | J28: 0 | K28: 0 | L28: 0 | M28: 0 | N28: 0 | O28: 0 | P28: 0 | Q28: 0 | R28: 0 | S28: 0 | T28: =T18*$AI$25 -> 0 | U28: 0 | V28: 0 | W28: 0 | X28: 0 | Y28: =Y18*$AI$25 -> 0 | Z28: 0 | AA28: 0 | AB28: 0 | AC28: 0 | AD28: =AD18*$AI$25 -> 0 | AE28: 0 | AF28: 0 | AG28: 0 | AI28: =SUM(I28:AG28) -> 0
A29: Administrative Overhead Allocation/ND | D29: =D19*$F$25 -> 0 | E29: =E19*$F$25 -> 0 | F29: =SUM(D29:E29) -> 0 | G29: i2 = d2 x h2 | I29: =I19*$AI$26 -> 0 | J29: =J19*$AI$26 -> 0 | K29: 0 | L29: 0 | M29: 0 | N29: 0 | O29: 0 | P29: 0 | Q29: 0 | R29: 0 | S29: 0 | T29: 0 | U29: 0 | V29: 0 | W29: 0 | X29: 0 | Y29: 0 | Z29: 0 | AA29: 0 | AB29: 0 | AC29: 0 | AD29: 0 | AE29: 0 | AF29: 0 | AG29: 0 | AI29: =SUM(I29:AG29) -> 0
A31: Total Allowable Costs | D31: =SUM(D18,D28) -> 63590.26277 | E31: 43055.01723 | F31: 106645.28 | G31: j = d + i | I31: =SUM(I18,I28) -> 0 | J31: =SUM(J18,J28) -> 0 | K31: 0 | L31: 0 | M31: 0 | N31: 0 | O31: 0 | P31: 0 | Q31: 0 | R31: 0 | S31: 0 | T31: =SUM(T18,T28) -> 0 | U31: 0 | V31: 0 | W31: 0 | X31: 0 | Y31: =SUM(Y18,Y28) -> 0 | Z31: 0 | AA31: 0 | AB31: 0 | AC31: 0 | AD31: =SUM(AD18,AD28) -> 0 | AE31: 0 | AF31: 0 | AG31: 0 | AI31: =SUM(AI18,AI28) -> 0
A32: Total Allowable Costs/ND | D32: 0 | E32: 0 | F32: 0 | G32: j2 = d2 + i2 | I32: =SUM(I19,I29) -> 0 | J32: =SUM(J19,J29) -> 0 | K32: 0 | L32: 0 | M32: 0 | N32: 0 | O32: 0 | P32: 0 | Q32: 0 | R32: 0 | S32: 0 | T32: 0 | U32: 0 | V32: 0 | W32: 0 | X32: 0 | Y32: 0 | Z32: 0 | AA32: 0 | AB32: 0 | AC32: 0 | AD32: 0 | AE32: 0 | AF32: 0 | AG32: 0
A34: Volume Projections of Good or Service:
A35: Total Number of Units Per Year (From Volume Projections Worksheet) | D35: =SUM('1 Volume Projections'!D13) -> 305 | E35: =SUM('1 Volume Projections'!D14) -> 30 | G35: k | I35: =+'1 Volume Projections'!D15 -> 0 | J35: =+'1 Volume Projections'!D16 -> 0 | K35: =+'1 Volume Projections'!D17 -> 0 | L35: =+'1 Volume Projections'!D18 -> 0 | M35: =+'1 Volume Projections'!D19 -> 0 | N35: =+'1 Volume Projections'!D20 -> 0 | O35: =+'1 Volume Projections'!D21 -> 0 | P35: =+'1 Volume Projections'!D22 -> 0 | Q35: =+'1 Volume Projections'!D23 -> 0 | R35: =+'1 Volume Projections'!D24 -> 0 | S35: =+'1 Volume Projections'!D25 -> 0 | T35: =+'1 Volume Projections'!D26 -> 0 | U35: =+'1 Volume Projections'!D27 -> 0 | V35: =+'1 Volume Projections'!D28 -> 0 | W35: =+'1 Volume Projections'!D29 -> 0 | X35: =+'1 Volume Projections'!D30 -> 0 | Y35: =+'1 Volume Projections'!D31 -> 0 | Z35: =+'1 Volume Projections'!D32 -> 0 | AA35: =+'1 Volume Projections'!D33 -> 0 | AB35: =+'1 Volume Projections'!D34 -> 0 | AC35: =+'1 Volume Projections'!D35 -> 0 | AD35: =+'1 Volume Projections'!D36 -> 0 | AE35: =+'1 Volume Projections'!D37 -> 0 | AF35: =+'1 Volume Projections'!D38 -> 0 | AG35: =+'1 Volume Projections'!D39 -> 0
A37: Cost Per Unit: | D37: =D31/D35 -> 208.4926648 | E37: =E31/E35 -> 1435.167241 | G37: l = j / k | I37: =ROUND(IF(I31>0,I31/I35,0),0) -> 0 | J37: 0 | K37: 0 | L37: 0 | M37: 0 | N37: 0 | O37: 0 | P37: 0 | Q37: 0 | R37: 0 | S37: 0 | T37: =ROUND(IF(T31>0,T31/T35,0),0) -> 0 | U37: 0 | V37: 0 | W37: 0 | X37: 0 | Y37: =ROUND(IF(Y31>0,Y31/Y35,0),0) -> 0 | Z37: 0 | AA37: 0 | AB37: 0 | AC37: 0 | AD37: =ROUND(IF(AD31>0,AD31/AD35,0),0) -> 0 | AE37: 0 | AF37: 0 | AG37: 0
A38: Cost Per Unit:/ No Depreciation | D38: =D32/D36 ->  | E38: =E32/E36 ->  | G38: l2 = j2 / k2 | I38: =ROUND(IF(I32>0,I32/I35,0),0) -> 0 | J38: =ROUND(IF(J32>0,J32/J35,0),0) -> 0 | K38: 0 | L38: 0 | M38: 0 | N38: 0 | O38: 0 | P38: 0 | Q38: 0 | R38: 0 | S38: 0 | T38: 0 | U38: 0 | V38: 0 | W38: 0 | X38: 0 | Y38: 0 | Z38: 0 | AA38: 0 | AB38: 0 | AC38: 0 | AD38: 0 | AE38: 0 | AF38: 0 | AG38: 0

Sheet 7 Proposed Rate(s)
A2: ='1 Volume Projections'!B1 -> 00:00:00
A3: Summary of Proposed Rate(s)
A4: ='2 Salary & Fringe'!A3:BI3 -> Fiscal Year 2026
F6: Service #1 | G6: Service #2 | H6: Service #3 | I6: Service #4 | J6: Service #5 | K6: Service #6 | L6: Service #7 | M6: Service #8 | N6: Service #9 | O6: Service #10 | P6: Service #11 | Q6: Service #12 | R6: Service #13 | S6: Service #14 | T6: Service #15 | U6: Service #16 | V6: Service #17 | W6: Service #18 | X6: Service #19 | Y6: Service #20 | Z6: Service #21 | AA6: Service #22 | AB6: Service #23 | AC6: Service #24 | AD6: Service #25
C7: EXAMPLE | F7: ='1 Volume Projections'!B15 -> 0 | G7: ='1 Volume Projections'!B16 -> 0 | H7: ='1 Volume Projections'!B17 -> 0 | I7: ='1 Volume Projections'!B18 -> 0 | J7: ='1 Volume Projections'!B19 -> 0 | K7: ='1 Volume Projections'!B20 -> 0 | L7: ='1 Volume Projections'!B21 -> 0 | M7: ='1 Volume Projections'!B22 -> 0 | N7: ='1 Volume Projections'!B23 -> 0 | O7: ='1 Volume Projections'!B24 -> 0 | P7: ='1 Volume Projections'!B25 -> 0 | Q7: ='1 Volume Projections'!C25 -> 0 | R7: ='1 Volume Projections'!D25 -> 0 | S7: ='1 Volume Projections'!E25 -> 0 | T7: ='1 Volume Projections'!F25 -> 0 | U7: ='1 Volume Projections'!G25 -> 0 | V7: ='1 Volume Projections'!H25 -> 0 | W7: ='1 Volume Projections'!I25 -> 0 | X7: ='1 Volume Projections'!J25 -> 0 | Y7: ='1 Volume Projections'!K25 -> 0 | Z7: ='1 Volume Projections'!L25 -> 0 | AA7: ='1 Volume Projections'!M25 -> 0 | AB7: ='1 Volume Projections'!N25 -> 0 | AC7: ='1 Volume Projections'!O25 -> 0 | AD7: ='1 Volume Projections'!P25 -> 0
C8: Service #1 | D8: Service #2
A10: Recommended/Calculated Cost Per Unit: (From Expense Summary) | C10: =SUM('6 Expense Summary'!D$37) -> 208.4926648 | D10: =SUM('6 Expense Summary'!E$37) -> 1435.167241 | F10: =SUM('6 Expense Summary'!I$37) -> 0 | G10: =SUM('6 Expense Summary'!J$37) -> 0 | H10: =SUM('6 Expense Summary'!K$37) -> 0 | I10: =SUM('6 Expense Summary'!L$37) -> 0 | J10: =SUM('6 Expense Summary'!M$37) -> 0 | K10: =SUM('6 Expense Summary'!N$37) -> 0 | L10: =SUM('6 Expense Summary'!O$37) -> 0 | M10: =SUM('6 Expense Summary'!P$37) -> 0 | N10: =SUM('6 Expense Summary'!Q$37) -> 0 | O10: =SUM('6 Expense Summary'!R$37) -> 0 | P10: =SUM('6 Expense Summary'!S$37) -> 0 | Q10: =SUM('6 Expense Summary'!T$37) -> 0 | R10: =SUM('6 Expense Summary'!U$37) -> 0 | S10: =SUM('6 Expense Summary'!V$37) -> 0 | T10: =SUM('6 Expense Summary'!W$37) -> 0 | U10: =SUM('6 Expense Summary'!X$37) -> 0 | V10: =SUM('6 Expense Summary'!Y$37) -> 0 | W10: =SUM('6 Expense Summary'!Z$37) -> 0 | X10: =SUM('6 Expense Summary'!AA$37) -> 0 | Y10: =SUM('6 Expense Summary'!AB$37) -> 0 | Z10: =SUM('6 Expense Summary'!AC$37) -> 0 | AA10: =SUM('6 Expense Summary'!AD$37) -> 0 | AB10: =SUM('6 Expense Summary'!AE$37) -> 0 | AC10: =SUM('6 Expense Summary'!AF$37) -> 0 | AD10: =SUM('6 Expense Summary'!AG$37) -> 0
A11: Calculated Cost per unit (minus equipment depreciation): | F11: =SUM('6 Expense Summary'!I$38) -> 0 | G11: =SUM('6 Expense Summary'!J$38) -> 0 | H11: =SUM('6 Expense Summary'!K$38) -> 0 | I11: =SUM('6 Expense Summary'!L$38) -> 0 | J11: =SUM('6 Expense Summary'!M$38) -> 0 | K11: =SUM('6 Expense Summary'!N$38) -> 0 | L11: =SUM('6 Expense Summary'!O$38) -> 0 | M11: =SUM('6 Expense Summary'!P$38) -> 0 | N11: =SUM('6 Expense Summary'!Q$38) -> 0 | O11: =SUM('6 Expense Summary'!R$38) -> 0 | P11: =SUM('6 Expense Summary'!S$38) -> 0 | Q11: =SUM('6 Expense Summary'!T$38) -> 0 | R11: =SUM('6 Expense Summary'!U$38) -> 0 | S11: =SUM('6 Expense Summary'!V$38) -> 0 | T11: =SUM('6 Expense Summary'!W$38) -> 0 | U11: =SUM('6 Expense Summary'!X$38) -> 0 | V11: =SUM('6 Expense Summary'!Y$38) -> 0 | W11: =SUM('6 Expense Summary'!Z$38) -> 0 | X11: =SUM('6 Expense Summary'!AA$38) -> 0 | Y11: =SUM('6 Expense Summary'!AB$38) -> 0 | Z11: =SUM('6 Expense Summary'!AC$38) -> 0 | AA11: =SUM('6 Expense Summary'!AD$38) -> 0 | AB11: =SUM('6 Expense Summary'!AE$38) -> 0 | AC11: =SUM('6 Expense Summary'!AF$38) -> 0 | AD11: =SUM('6 Expense Summary'!AG$38) -> 0
A12: Charge Per Unit: (Please enter unit price)
A15: Proposed Rate(s):
A16: Internal: | C16: =ROUND(C10,0) -> 208 | D16: =ROUND(D10,0) -> 1435 | F16: =ROUND(F12,0) -> 0 | G16: 0 | H16: 0 | I16: 0 | J16: 0 | K16: 0 | L16: 0 | M16: 0 | N16: 0 | O16: 0 | P16: 0 | Q16: 0 | R16: 0 | S16: 0 | T16: 0 | U16: 0 | V16: 0 | W16: 0 | X16: 0 | Y16: 0 | Z16: 0 | AA16: 0 | AB16: 0 | AC16: 0 | AD16: 0
A19: UT System/ In Network | C19: =ROUND(#REF!*1.625,0) ->  | D19: =ROUND(#REF!*1.625,0) ->  | F19: =ROUND(F16*1,0) -> 0 | G19: =ROUND(G16*1,0) -> 0 | H19: 0 | I19: 0 | J19: 0 | K19: 0 | L19: 0 | M19: 0 | N19: 0 | O19: =ROUND(O16*1,0) -> 0 | P19: =ROUND(P16*1,0) -> 0 | Q19: 0 | R19: 0 | S19: 0 | T19: 0 | U19: 0 | V19: 0 | W19: 0 | X19: 0 | Y19: 0 | Z19: 0 | AA19: 0 | AB19: 0 | AC19: 0 | AD19: 0
A20: * internal rate per MOU
A22: External - Non-Profit: | C22: =ROUND(C16*1.625,0) -> 338 | D22: =ROUND(D16*1.625,0) -> 2332 | F22: =F16+F24 -> 0 | G22: =G16+G24 -> 0 | H22: 0 | I22: 0 | J22: 0 | K22: 0 | L22: 0 | M22: 0 | N22: 0 | O22: 0 | P22: 0 | Q22: 0 | R22: 0 | S22: 0 | T22: 0 | U22: 0 | V22: 0 | W22: 0 | X22: 0 | Y22: 0 | Z22: 0 | AA22: 0 | AB22: 0 | AC22: 0 | AD22: 0
A23: * recommended increase of 30% for non-profit exernal to help recover F&A
A24: F&A | B24: 0.3 | C24: =C$16*0.625 -> 130 | D24: =D$16*0.625 -> 896.875 | F24: =IF(F$26>0,F$16*$B$24,0) -> 0 | G24: 0 | H24: 0 | I24: 0 | J24: 0 | K24: 0 | L24: 0 | M24: 0 | N24: 0 | O24: 0 | P24: 0 | Q24: 0 | R24: 0 | S24: 0 | T24: 0 | U24: 0 | V24: 0 | W24: 0 | X24: 0 | Y24: 0 | Z24: 0 | AA24: 0 | AB24: 0 | AC24: 0 | AD24: 0
A26: External - For-Profit: | C26: 100 | D26: 0 | F26: =F16*(1+$B$28) -> 0 | G26: 0 | H26: 0 | I26: 0 | J26: 0 | K26: 0 | L26: 0 | M26: 0 | N26: 0 | O26: 0 | P26: 0 | Q26: 0 | R26: 0 | S26: 0 | T26: 0 | U26: 0 | V26: 0 | W26: 0 | X26: 0 | Y26: 0 | Z26: 0 | AA26: 0 | AB26: 0 | AC26: 0 | AD26: 0
A27: *internal rate plus applicable Indirect Cost rate up to market (see below)
A28: F&A | B28: 0.54 | F28: =IF(F$26>0,F$16*$B$28,0) -> 0 | G28: 0 | H28: 0 | I28: 0 | J28: 0 | K28: 0 | L28: 0 | M28: 0 | N28: 0 | O28: 0 | P28: 0 | Q28: 0 | R28: 0 | S28: 0 | T28: 0 | U28: 0 | V28: 0 | W28: 0 | X28: 0 | Y28: 0 | Z28: 0 | AA28: 0 | AB28: 0 | AC28: 0 | AD28: 0
C29: =IF(C$26>0,C$16*0.625,0) -> 130 | D29: =IF(D$26>0,D$16*0.625,0) -> 0
C35: 07/01/11–06/30/15
C36: 0.72
C37: 0.34

Sheet 8 Revenue Summary
A3: ='1 Volume Projections'!B1 -> 00:00:00
A4: Summary of Projected Revenues
A5: ='2 Salary & Fringe'!A3:BI3 -> Fiscal Year 2026
F7: Service #1 | G7: Service #2 | H7: Service #3 | I7: Service #4 | J7: Service #5 | K7: Service #6 | L7: Service #7 | M7: Service #8 | N7: Service #9 | O7: Service #10 | P7: Service #11 | Q7: Service #12 | R7: Service #13 | S7: Service #14 | T7: Service #15 | U7: Service #16 | V7: Service #17 | W7: Service #18 | X7: Service #19 | Y7: Service #20 | Z7: Service #21 | AA7: Service #22 | AB7: Service #23 | AC7: Service #24 | AD7: Service #25
B8: EXAMPLE | F8: ='1 Volume Projections'!B15 -> 0 | G8: ='1 Volume Projections'!B16 -> 0 | H8: ='1 Volume Projections'!B17 -> 0 | I8: ='1 Volume Projections'!B18 -> 0 | J8: ='1 Volume Projections'!B19 -> 0 | K8: ='1 Volume Projections'!B20 -> 0 | L8: ='1 Volume Projections'!B21 -> 0 | M8: ='1 Volume Projections'!B22 -> 0 | N8: ='1 Volume Projections'!B23 -> 0 | O8: ='1 Volume Projections'!B24 -> 0 | P8: ='1 Volume Projections'!B25 -> 0 | Q8: ='1 Volume Projections'!B26 -> 0 | R8: ='1 Volume Projections'!B27 -> 0 | S8: ='1 Volume Projections'!B28 -> 0 | T8: ='1 Volume Projections'!B29 -> 0 | U8: ='1 Volume Projections'!B30 -> 0 | V8: ='1 Volume Projections'!B31 -> 0 | W8: ='1 Volume Projections'!B32 -> 0 | X8: ='1 Volume Projections'!B33 -> 0 | Y8: ='1 Volume Projections'!B34 -> 0 | Z8: ='1 Volume Projections'!B35 -> 0 | AA8: ='1 Volume Projections'!B36 -> 0 | AB8: ='1 Volume Projections'!B37 -> 0 | AC8: ='1 Volume Projections'!B38 -> 0 | AD8: ='1 Volume Projections'!B39 -> 0 | AE8: Totals
A9: Requested Rate(s)
A10: Internal (From Proposed Rate(s) Worksheet) | B10: =SUM('7 Proposed Rate(s)'!C$16) -> 208 | C10: =SUM('7 Proposed Rate(s)'!D$16) -> 1435 | F10: =SUM('7 Proposed Rate(s)'!F$16) -> 0 | G10: =SUM('7 Proposed Rate(s)'!G$16) -> 0 | H10: =SUM('7 Proposed Rate(s)'!H$16) -> 0 | I10: =SUM('7 Proposed Rate(s)'!I$16) -> 0 | J10: =SUM('7 Proposed Rate(s)'!J$16) -> 0 | K10: =SUM('7 Proposed Rate(s)'!K$16) -> 0 | L10: =SUM('7 Proposed Rate(s)'!L$16) -> 0 | M10: =SUM('7 Proposed Rate(s)'!M$16) -> 0 | N10: =SUM('7 Proposed Rate(s)'!N$16) -> 0 | O10: =SUM('7 Proposed Rate(s)'!O$16) -> 0 | P10: =SUM('7 Proposed Rate(s)'!P$16) -> 0 | Q10: =SUM('7 Proposed Rate(s)'!Q$16) -> 0 | R10: =SUM('7 Proposed Rate(s)'!R$16) -> 0 | S10: =SUM('7 Proposed Rate(s)'!S$16) -> 0 | T10: =SUM('7 Proposed Rate(s)'!T$16) -> 0 | U10: =SUM('7 Proposed Rate(s)'!U$16) -> 0 | V10: =SUM('7 Proposed Rate(s)'!V$16) -> 0 | W10: =SUM('7 Proposed Rate(s)'!W$16) -> 0 | X10: =SUM('7 Proposed Rate(s)'!X$16) -> 0 | Y10: =SUM('7 Proposed Rate(s)'!Y$16) -> 0 | Z10: =SUM('7 Proposed Rate(s)'!Z$16) -> 0 | AA10: =SUM('7 Proposed Rate(s)'!AA$16) -> 0 | AB10: =SUM('7 Proposed Rate(s)'!AB$16) -> 0 | AC10: =SUM('7 Proposed Rate(s)'!AC$16) -> 0 | AD10: =SUM('7 Proposed Rate(s)'!AD$16) -> 0 | AE10: =SUM(F10:AD10) -> 0
A11: UT System/ In Network (From Proposed Rate(s) Worksheet) | F11: =SUM('7 Proposed Rate(s)'!F$19) -> 0 | G11: =SUM('7 Proposed Rate(s)'!G$19) -> 0 | H11: =SUM('7 Proposed Rate(s)'!H$19) -> 0 | I11: =SUM('7 Proposed Rate(s)'!I$19) -> 0 | J11: =SUM('7 Proposed Rate(s)'!J$19) -> 0 | K11: =SUM('7 Proposed Rate(s)'!K$19) -> 0 | L11: =SUM('7 Proposed Rate(s)'!L$19) -> 0 | M11: =SUM('7 Proposed Rate(s)'!M$19) -> 0 | N11: =SUM('7 Proposed Rate(s)'!N$19) -> 0 | O11: =SUM('7 Proposed Rate(s)'!O$19) -> 0 | P11: =SUM('7 Proposed Rate(s)'!P$19) -> 0 | Q11: =SUM('7 Proposed Rate(s)'!Q$19) -> 0 | R11: =SUM('7 Proposed Rate(s)'!R$19) -> 0 | S11: =SUM('7 Proposed Rate(s)'!S$19) -> 0 | T11: =SUM('7 Proposed Rate(s)'!T$19) -> 0 | U11: =SUM('7 Proposed Rate(s)'!U$19) -> 0 | V11: =SUM('7 Proposed Rate(s)'!V$19) -> 0 | W11: =SUM('7 Proposed Rate(s)'!W$19) -> 0 | X11: =SUM('7 Proposed Rate(s)'!X$19) -> 0 | Y11: =SUM('7 Proposed Rate(s)'!Y$19) -> 0 | Z11: =SUM('7 Proposed Rate(s)'!Z$19) -> 0 | AA11: =SUM('7 Proposed Rate(s)'!AA$19) -> 0 | AB11: =SUM('7 Proposed Rate(s)'!AB$19) -> 0 | AC11: =SUM('7 Proposed Rate(s)'!AC$19) -> 0 | AD11: =SUM('7 Proposed Rate(s)'!AD$19) -> 0 | AE11: =SUM(F11:AD11) -> 0
A12: External - Non-Profit (From Proposed Rate(s) Worksheet) | B12: =SUM('7 Proposed Rate(s)'!C$22) -> 338 | C12: =SUM('7 Proposed Rate(s)'!D$22) -> 2332 | F12: =SUM('7 Proposed Rate(s)'!F$22) -> 0 | G12: =SUM('7 Proposed Rate(s)'!G$22) -> 0 | H12: =SUM('7 Proposed Rate(s)'!H$22) -> 0 | I12: =SUM('7 Proposed Rate(s)'!I$22) -> 0 | J12: =SUM('7 Proposed Rate(s)'!J$22) -> 0 | K12: =SUM('7 Proposed Rate(s)'!K$22) -> 0 | L12: =SUM('7 Proposed Rate(s)'!L$22) -> 0 | M12: =SUM('7 Proposed Rate(s)'!M$22) -> 0 | N12: =SUM('7 Proposed Rate(s)'!N$22) -> 0 | O12: =SUM('7 Proposed Rate(s)'!O$22) -> 0 | P12: =SUM('7 Proposed Rate(s)'!P$22) -> 0 | Q12: =SUM('7 Proposed Rate(s)'!Q$22) -> 0 | R12: =SUM('7 Proposed Rate(s)'!R$22) -> 0 | S12: =SUM('7 Proposed Rate(s)'!S$22) -> 0 | T12: =SUM('7 Proposed Rate(s)'!T$22) -> 0 | U12: =SUM('7 Proposed Rate(s)'!U$22) -> 0 | V12: =SUM('7 Proposed Rate(s)'!V$22) -> 0 | W12: =SUM('7 Proposed Rate(s)'!W$22) -> 0 | X12: =SUM('7 Proposed Rate(s)'!X$22) -> 0 | Y12: =SUM('7 Proposed Rate(s)'!Y$22) -> 0 | Z12: =SUM('7 Proposed Rate(s)'!Z$22) -> 0 | AA12: =SUM('7 Proposed Rate(s)'!AA$22) -> 0 | AB12: =SUM('7 Proposed Rate(s)'!AB$22) -> 0 | AC12: =SUM('7 Proposed Rate(s)'!AC$22) -> 0 | AD12: =SUM('7 Proposed Rate(s)'!AD$22) -> 0 | AE12: 0
A13: External - For-Profit (From Proposed Rate(s) Worksheet) | B13: =SUM('7 Proposed Rate(s)'!C$26) -> 100 | C13: =SUM('7 Proposed Rate(s)'!D$26) -> 0 | F13: =SUM('7 Proposed Rate(s)'!F$26) -> 0 | G13: =SUM('7 Proposed Rate(s)'!G$26) -> 0 | H13: =SUM('7 Proposed Rate(s)'!H$26) -> 0 | I13: =SUM('7 Proposed Rate(s)'!I$26) -> 0 | J13: =SUM('7 Proposed Rate(s)'!J$26) -> 0 | K13: =SUM('7 Proposed Rate(s)'!K$26) -> 0 | L13: =SUM('7 Proposed Rate(s)'!L$26) -> 0 | M13: =SUM('7 Proposed Rate(s)'!M$26) -> 0 | N13: =SUM('7 Proposed Rate(s)'!N$26) -> 0 | O13: =SUM('7 Proposed Rate(s)'!O$26) -> 0 | P13: =SUM('7 Proposed Rate(s)'!P$26) -> 0 | Q13: =SUM('7 Proposed Rate(s)'!Q$26) -> 0 | R13: =SUM('7 Proposed Rate(s)'!R$26) -> 0 | S13: =SUM('7 Proposed Rate(s)'!S$26) -> 0 | T13: =SUM('7 Proposed Rate(s)'!T$26) -> 0 | U13: =SUM('7 Proposed Rate(s)'!U$26) -> 0 | V13: =SUM('7 Proposed Rate(s)'!V$26) -> 0 | W13: =SUM('7 Proposed Rate(s)'!W$26) -> 0 | X13: =SUM('7 Proposed Rate(s)'!X$26) -> 0 | Y13: =SUM('7 Proposed Rate(s)'!Y$26) -> 0 | Z13: =SUM('7 Proposed Rate(s)'!Z$26) -> 0 | AA13: =SUM('7 Proposed Rate(s)'!AA$26) -> 0 | AB13: =SUM('7 Proposed Rate(s)'!AB$26) -> 0 | AC13: =SUM('7 Proposed Rate(s)'!AC$26) -> 0 | AD13: =SUM('7 Proposed Rate(s)'!AD$26) -> 0 | AE13: 0
A15: Projected Volume:
A16: Internal (From Volume Projections Worksheet) | B16: =SUM('1 Volume Projections'!E13:F13) -> 300 | C16: =SUM('1 Volume Projections'!E14:F14) -> 15 | F16: =SUM('1 Volume Projections'!E15) -> 0 | G16: =SUM('1 Volume Projections'!E16) -> 0 | H16: =SUM('1 Volume Projections'!E17) -> 0 | I16: =SUM('1 Volume Projections'!E18) -> 0 | J16: =SUM('1 Volume Projections'!E19) -> 0 | K16: =SUM('1 Volume Projections'!E20) -> 0 | L16: =SUM('1 Volume Projections'!E21) -> 0 | M16: =SUM('1 Volume Projections'!E22) -> 0 | N16: =SUM('1 Volume Projections'!E23) -> 0 | O16: =SUM('1 Volume Projections'!E24) -> 0 | P16: =SUM('1 Volume Projections'!E25) -> 0 | Q16: =SUM('1 Volume Projections'!E26) -> 0 | R16: =SUM('1 Volume Projections'!E27) -> 0 | S16: =SUM('1 Volume Projections'!E28) -> 0 | T16: =SUM('1 Volume Projections'!E29) -> 0 | U16: =SUM('1 Volume Projections'!E30) -> 0 | V16: =SUM('1 Volume Projections'!E31) -> 0 | W16: =SUM('1 Volume Projections'!E32) -> 0 | X16: =SUM('1 Volume Projections'!E33) -> 0 | Y16: =SUM('1 Volume Projections'!E34) -> 0 | Z16: =SUM('1 Volume Projections'!E35) -> 0 | AA16: =SUM('1 Volume Projections'!E36) -> 0 | AB16: =SUM('1 Volume Projections'!E37) -> 0 | AC16: =SUM('1 Volume Projections'!E38) -> 0 | AD16: =SUM('1 Volume Projections'!E39) -> 0 | AE16: =SUM(F16:AD16) -> 0
A17: UT System/ In Network (From Volume Projections Worksheet) | F17: =SUM('1 Volume Projections'!$F15) -> 0 | G17: =SUM('1 Volume Projections'!$F16) -> 0 | H17: =SUM('1 Volume Projections'!$F17) -> 0 | I17: =SUM('1 Volume Projections'!$F18) -> 0 | J17: =SUM('1 Volume Projections'!$F19) -> 0 | K17: =SUM('1 Volume Projections'!$F20) -> 0 | L17: =SUM('1 Volume Projections'!$F21) -> 0 | M17: =SUM('1 Volume Projections'!$F22) -> 0 | N17: =SUM('1 Volume Projections'!$F23) -> 0 | O17: =SUM('1 Volume Projections'!$F24) -> 0 | P17: =SUM('1 Volume Projections'!$F25) -> 0 | Q17: =SUM('1 Volume Projections'!$F26) -> 0 | R17: =SUM('1 Volume Projections'!$F27) -> 0 | S17: =SUM('1 Volume Projections'!$F28) -> 0 | T17: =SUM('1 Volume Projections'!$F29) -> 0 | U17: =SUM('1 Volume Projections'!$F30) -> 0 | V17: =SUM('1 Volume Projections'!$F31) -> 0 | W17: =SUM('1 Volume Projections'!$F32) -> 0 | X17: =SUM('1 Volume Projections'!$F33) -> 0 | Y17: =SUM('1 Volume Projections'!$F34) -> 0 | Z17: =SUM('1 Volume Projections'!$F35) -> 0 | AA17: =SUM('1 Volume Projections'!$F36) -> 0 | AB17: =SUM('1 Volume Projections'!$F37) -> 0 | AC17: =SUM('1 Volume Projections'!$F38) -> 0 | AD17: =SUM('1 Volume Projections'!$F39) -> 0 | AE17: =SUM(F17:AD17) -> 0
A18: External - Non-Profit (From Volume Projections Worksheet) | B18: =SUM('1 Volume Projections'!G13:G13) -> 0 | C18: =SUM('1 Volume Projections'!G14:G14) -> 15 | F18: =SUM('1 Volume Projections'!G15) -> 0 | G18: =SUM('1 Volume Projections'!G16) -> 0 | H18: =SUM('1 Volume Projections'!G17) -> 0 | I18: =SUM('1 Volume Projections'!G18) -> 0 | J18: =SUM('1 Volume Projections'!G19) -> 0 | K18: =SUM('1 Volume Projections'!G20) -> 0 | L18: =SUM('1 Volume Projections'!G21) -> 0 | M18: =SUM('1 Volume Projections'!G22) -> 0 | N18: =SUM('1 Volume Projections'!G23) -> 0 | O18: =SUM('1 Volume Projections'!G24) -> 0 | P18: =SUM('1 Volume Projections'!G25) -> 0 | Q18: =SUM('1 Volume Projections'!G26) -> 0 | R18: =SUM('1 Volume Projections'!G27) -> 0 | S18: =SUM('1 Volume Projections'!G28) -> 0 | T18: =SUM('1 Volume Projections'!G29) -> 0 | U18: =SUM('1 Volume Projections'!G30) -> 0 | V18: =SUM('1 Volume Projections'!G31) -> 0 | W18: =SUM('1 Volume Projections'!G32) -> 0 | X18: =SUM('1 Volume Projections'!G33) -> 0 | Y18: =SUM('1 Volume Projections'!G34) -> 0 | Z18: =SUM('1 Volume Projections'!G35) -> 0 | AA18: =SUM('1 Volume Projections'!G36) -> 0 | AB18: =SUM('1 Volume Projections'!G37) -> 0 | AC18: =SUM('1 Volume Projections'!G38) -> 0 | AD18: =SUM('1 Volume Projections'!G39) -> 0 | AE18: 0
A19: External - For-Profit (From Volume Projections Worksheet) | B19: =SUM('1 Volume Projections'!H13) -> 5 | C19: =SUM('1 Volume Projections'!H14) -> 0 | F19: =SUM('1 Volume Projections'!H15) -> 0 | G19: =SUM('1 Volume Projections'!H16) -> 0 | H19: =SUM('1 Volume Projections'!H17) -> 0 | I19: =SUM('1 Volume Projections'!H18) -> 0 | J19: =SUM('1 Volume Projections'!H19) -> 0 | K19: =SUM('1 Volume Projections'!H20) -> 0 | L19: =SUM('1 Volume Projections'!H21) -> 0 | M19: =SUM('1 Volume Projections'!H22) -> 0 | N19: =SUM('1 Volume Projections'!H23) -> 0 | O19: =SUM('1 Volume Projections'!H24) -> 0 | P19: =SUM('1 Volume Projections'!H25) -> 0 | Q19: =SUM('1 Volume Projections'!H26) -> 0 | R19: =SUM('1 Volume Projections'!H27) -> 0 | S19: =SUM('1 Volume Projections'!H28) -> 0 | T19: =SUM('1 Volume Projections'!H29) -> 0 | U19: =SUM('1 Volume Projections'!H30) -> 0 | V19: =SUM('1 Volume Projections'!H31) -> 0 | W19: =SUM('1 Volume Projections'!H32) -> 0 | X19: =SUM('1 Volume Projections'!H33) -> 0 | Y19: =SUM('1 Volume Projections'!H34) -> 0 | Z19: =SUM('1 Volume Projections'!H35) -> 0 | AA19: =SUM('1 Volume Projections'!H36) -> 0 | AB19: =SUM('1 Volume Projections'!H37) -> 0 | AC19: =SUM('1 Volume Projections'!H38) -> 0 | AD19: =SUM('1 Volume Projections'!H39) -> 0 | AE19: 0
A21: Total Projected Volume | B21: =SUM(B14:B20) -> 305 | C21: =SUM(C14:C20) -> 30 | F21: =SUM(F16:F20) -> 0 | G21: 0 | H21: 0 | I21: 0 | J21: 0 | K21: 0 | L21: 0 | M21: 0 | N21: 0 | O21: 0 | P21: 0 | Q21: =SUM(Q16:Q20) -> 0 | R21: 0 | S21: 0 | T21: 0 | U21: 0 | V21: =SUM(V16:V20) -> 0 | W21: 0 | X21: 0 | Y21: 0 | Z21: 0 | AA21: =SUM(AA16:AA20) -> 0 | AB21: 0 | AC21: 0 | AD21: 0 | AE21: =SUM(F21:AD21) -> 0
A23: Projected Revenue:
A24: Internal | B24: =B10*B16 -> 62400 | C24: =C10*C16 -> 21525 | F24: =F10*F16 -> 0 | G24: 0 | H24: 0 | I24: 0 | J24: 0 | K24: 0 | L24: 0 | M24: 0 | N24: 0 | O24: 0 | P24: 0 | Q24: =Q10*Q16 -> 0 | R24: 0 | S24: 0 | T24: 0 | U24: 0 | V24: =V10*V16 -> 0 | W24: 0 | X24: 0 | Y24: 0 | Z24: 0 | AA24: =AA10*AA16 -> 0 | AB24: 0 | AC24: 0 | AD24: 0 | AE24: =SUM(F24:AD24) -> 0
A25: UT System/ In Network (From Proposed Rate(s) Worksheet) | F25: =F11*F17 -> 0 | G25: 0 | H25: 0 | I25: 0 | J25: 0 | K25: 0 | L25: 0 | M25: 0 | N25: 0 | O25: 0 | P25: 0 | Q25: =Q11*Q17 -> 0 | R25: 0 | S25: 0 | T25: 0 | U25: 0 | V25: =V11*V17 -> 0 | W25: 0 | X25: 0 | Y25: 0 | Z25: 0 | AA25: =AA11*AA17 -> 0 | AB25: 0 | AC25: 0 | AD25: 0 | AE25: =SUM(F25:AD25) -> 0
A26: External - Non-Profit (From Proposed Rate(s) Worksheet) | B26: =B12*B18 -> 0 | C26: =C12*C18 -> 34980 | F26: =F12*F18 -> 0 | G26: 0 | H26: 0 | I26: 0 | J26: 0 | K26: 0 | L26: 0 | M26: 0 | N26: 0 | O26: 0 | P26: 0 | Q26: =Q12*Q18 -> 0 | R26: 0 | S26: 0 | T26: 0 | U26: 0 | V26: =V12*V18 -> 0 | W26: 0 | X26: 0 | Y26: 0 | Z26: 0 | AA26: =AA12*AA18 -> 0 | AB26: 0 | AC26: 0 | AD26: 0 | AE26: 0
A27: External - For-Profit (From Proposed Rate(s) Worksheet) | B27: =B13*B19 -> 500 | C27: =C13*C19 -> 0 | F27: =F13*F19 -> 0 | G27: 0 | H27: 0 | I27: 0 | J27: 0 | K27: 0 | L27: 0 | M27: 0 | N27: 0 | O27: 0 | P27: 0 | Q27: =Q13*Q19 -> 0 | R27: 0 | S27: 0 | T27: 0 | U27: 0 | V27: =V13*V19 -> 0 | W27: 0 | X27: 0 | Y27: 0 | Z27: 0 | AA27: =AA13*AA19 -> 0 | AB27: 0 | AC27: 0 | AD27: 0 | AE27: 0
A29: Total Projected Revenue | B29: =SUM(B24:B28) -> 62900 | C29: =SUM(C24:C28) -> 56505 | D29: =SUM(B29:C29) -> 119405 | F29: =SUM(F24:F28) -> 0 | G29: 0 | H29: 0 | I29: 0 | J29: 0 | K29: 0 | L29: 0 | M29: 0 | N29: 0 | O29: 0 | P29: 0 | Q29: =SUM(Q24:Q28) -> 0 | R29: 0 | S29: 0 | T29: 0 | U29: 0 | V29: =SUM(V24:V28) -> 0 | W29: 0 | X29: 0 | Y29: 0 | Z29: 0 | AA29: =SUM(AA24:AA28) -> 0 | AB29: 0 | AC29: 0 | AD29: 0 | AE29: 0
A32: check total (service center operating & equipment revenue less operating expenses) | B32: =SUM(#REF!)-'6 Expense Summary'!D31 ->  | C32: =SUM(#REF!)-'6 Expense Summary'!E31 ->  | D32: =SUM(B32:C32) ->  | F32: =SUM(#REF!)-'6 Expense Summary'!I31 ->  | G32: =SUM(#REF!)-'6 Expense Summary'!J31 ->  | H32: =SUM(#REF!)-'6 Expense Summary'!K31 ->  | I32: =SUM(#REF!)-'6 Expense Summary'!L31 ->  | J32: =SUM(#REF!)-'6 Expense Summary'!M31 ->  | K32: =SUM(#REF!)-'6 Expense Summary'!N31 ->  | L32: =SUM(#REF!)-'6 Expense Summary'!O31 ->  | M32: =SUM(#REF!)-'6 Expense Summary'!P31 ->  | N32: =SUM(#REF!)-'6 Expense Summary'!Q31 ->  | O32: =SUM(#REF!)-'6 Expense Summary'!R31 ->  | P32: =SUM(#REF!)-'6 Expense Summary'!AH31 ->  | Q32: =SUM(#REF!)-'6 Expense Summary'!AI31 ->  | R32: =SUM(#REF!)-'6 Expense Summary'!AJ31 ->  | S32: =SUM(#REF!)-'6 Expense Summary'!AK31 ->  | T32: =SUM(#REF!)-'6 Expense Summary'!AL31 ->  | U32: =SUM(#REF!)-'6 Expense Summary'!AM31 ->  | V32: =SUM(#REF!)-'6 Expense Summary'!AN31 ->  | W32: =SUM(#REF!)-'6 Expense Summary'!AO31 ->  | X32: =SUM(#REF!)-'6 Expense Summary'!AP31 ->  | Y32: =SUM(#REF!)-'6 Expense Summary'!AQ31 ->  | Z32: =SUM(#REF!)-'6 Expense Summary'!AR31 ->  | AA32: =SUM(#REF!)-'6 Expense Summary'!AS31 ->  | AB32: =SUM(#REF!)-'6 Expense Summary'!AT31 ->  | AC32: =SUM(#REF!)-'6 Expense Summary'!AU31 ->  | AD32: =SUM(#REF!)-'6 Expense Summary'!AV31 ->  | AE32: =SUM(F32:O32) -> 
A33: * goal is to be balanced to $0, however minimal differences allowed for rounding of fees

Sheet 9 Five Year Projection
A1: UTHealth
A2: Service Center 5 Year Projection
A3: ='1 Volume Projections'!B1 -> 0
A5: Please enter data in the blue highlighted cells
A6: Do not fill. These are automatically populated or protected.
A8: Start Date (MM/DD/YY): | B8: 2025-09-01
A9: Months In Service During Year 1: | B9: 12
A10: Inflation Factor: | B10: 0.03
A11: Start-Up Lag (% of total expected volume in Year 1): | B11: 1
A13: REVENUE | B13: FY 2026 Total | C13: FY 2026 Lagged | D13: FY 2027 | E13: FY 2028 | F13: FY 2029 | G13: FY 2030
A14: Services:
A15: ='8 Revenue Summary'!F8:F8 -> 0 | B15: ='8 Revenue Summary'!F29 -> 0 | C15: =(B15*$B$11)*$B$9/12 -> 0 | D15: =+B15*(1+$B$10) -> 0 | E15: =+D15*(1+$B$10) -> 0 | F15: 0 | G15: 0
A16: ='8 Revenue Summary'!G8 -> 0 | B16: ='8 Revenue Summary'!G29 -> 0 | C16: =(B16*$B$11)*$B$9/12 -> 0 | D16: 0 | E16: 0 | F16: 0 | G16: 0
A17: ='8 Revenue Summary'!H8 -> 0 | B17: ='8 Revenue Summary'!H29 -> 0 | C17: 0 | D17: 0 | E17: 0 | F17: 0 | G17: 0
A18: ='8 Revenue Summary'!I8 -> 0 | B18: ='8 Revenue Summary'!I29 -> 0 | C18: 0 | D18: 0 | E18: 0 | F18: 0 | G18: 0
A19: ='8 Revenue Summary'!J8 -> 0 | B19: ='8 Revenue Summary'!J29 -> 0 | C19: 0 | D19: 0 | E19: 0 | F19: 0 | G19: 0
A20: ='8 Revenue Summary'!K8 -> 0 | B20: ='8 Revenue Summary'!K29 -> 0 | C20: 0 | D20: 0 | E20: 0 | F20: 0 | G20: 0
A21: ='8 Revenue Summary'!L8 -> 0 | B21: ='8 Revenue Summary'!L29 -> 0 | C21: 0 | D21: 0 | E21: 0 | F21: 0 | G21: 0
A22: ='8 Revenue Summary'!M8 -> 0 | B22: ='8 Revenue Summary'!M29 -> 0 | C22: 0 | D22: 0 | E22: 0 | F22: 0 | G22: 0
A23: ='8 Revenue Summary'!N8 -> 0 | B23: ='8 Revenue Summary'!N29 -> 0 | C23: 0 | D23: 0 | E23: 0 | F23: 0 | G23: 0
A24: ='8 Revenue Summary'!O8 -> 0 | B24: ='8 Revenue Summary'!O29 -> 0 | C24: 0 | D24: 0 | E24: 0 | F24: 0 | G24: 0
A25: ='8 Revenue Summary'!P8 -> 0 | B25: ='8 Revenue Summary'!P29 -> 0 | C25: =(B25*$B$11)*$B$9/12 -> 0 | D25: =+B25*(1+$B$10) -> 0 | E25: =+D25*(1+$B$10) -> 0 | F25: =+E25*(1+$B$10) -> 0 | G25: =+F25*(1+$B$10) -> 0
A26: ='8 Revenue Summary'!Q8 -> 0 | B26: ='8 Revenue Summary'!Q29 -> 0 | C26: 0 | D26: 0 | E26: 0 | F26: 0 | G26: 0
A27: ='8 Revenue Summary'!R8 -> 0 | B27: ='8 Revenue Summary'!R29 -> 0 | C27: 0 | D27: 0 | E27: 0 | F27: 0 | G27: 0
A28: ='8 Revenue Summary'!S8 -> 0 | B28: ='8 Revenue Summary'!S29 -> 0 | C28: 0 | D28: 0 | E28: 0 | F28: 0 | G28: 0
A29: ='8 Revenue Summary'!T8 -> 0 | B29: ='8 Revenue Summary'!T29 -> 0 | C29: 0 | D29: 0 | E29: 0 | F29: 0 | G29: 0
A30: ='8 Revenue Summary'!U8 -> 0 | B30: ='8 Revenue Summary'!U29 -> 0 | C30: 0 | D30: 0 | E30: 0 | F30: 0 | G30: 0
A31: ='8 Revenue Summary'!V8 -> 0 | B31: ='8 Revenue Summary'!V29 -> 0 | C31: 0 | D31: 0 | E31: 0 | F31: 0 | G31: 0
A32: ='8 Revenue Summary'!W8 -> 0 | B32: ='8 Revenue Summary'!W29 -> 0 | C32: 0 | D32: 0 | E32: 0 | F32: 0 | G32: 0
A33: ='8 Revenue Summary'!X8 -> 0 | B33: ='8 Revenue Summary'!X29 -> 0 | C33: 0 | D33: 0 | E33: 0 | F33: 0 | G33: 0
A34: ='8 Revenue Summary'!Y8 -> 0 | B34: ='8 Revenue Summary'!Y29 -> 0 | C34: =(B34*$B$11)*$B$9/12 -> 0 | D34: =+B34*(1+$B$10) -> 0 | E34: =+D34*(1+$B$10) -> 0 | F34: =+E34*(1+$B$10) -> 0 | G34: =+F34*(1+$B$10) -> 0
A35: ='8 Revenue Summary'!Z8 -> 0 | B35: ='8 Revenue Summary'!Z29 -> 0 | C35: 0 | D35: 0 | E35: 0 | F35: 0 | G35: 0
A36: ='8 Revenue Summary'!AA8 -> 0 | B36: ='8 Revenue Summary'!AA29 -> 0 | C36: 0 | D36: 0 | E36: 0 | F36: 0 | G36: 0
A37: ='8 Revenue Summary'!AB8 -> 0 | B37: ='8 Revenue Summary'!AB29 -> 0 | C37: 0 | D37: 0 | E37: 0 | F37: 0 | G37: 0
A38: ='8 Revenue Summary'!AC8 -> 0 | B38: ='8 Revenue Summary'!AC29 -> 0 | C38: 0 | D38: 0 | E38: 0 | F38: 0 | G38: 0
A39: ='8 Revenue Summary'!AD8 -> 0 | B39: ='8 Revenue Summary'!AD29 -> 0 | C39: =(B39*$B$11)*$B$9/12 -> 0 | D39: =+B39*(1+$B$10) -> 0 | E39: =+D39*(1+$B$10) -> 0 | F39: =+E39*(1+$B$10) -> 0 | G39: =+F39*(1+$B$10) -> 0
A40: TOTAL REVENUE | B40: =SUM(B15:B39) -> 0 | C40: =SUM(C15:C39) -> 0 | D40: 0 | E40: 0 | F40: 0 | G40: 0
A42: EXPENSES | B42: FY 2026 Total | C42: FY 2026 Lagged | D42: FY 2027 | E42: FY 2028 | F42: FY 2029 | G42: FY 2030
A43: Salaries & Fringe:
A44: ='2 Salary & Fringe'!A12 -> 0 | B44: ='2 Salary & Fringe'!I12 -> 0 | C44: =(B44)*$B$9/12 -> 0 | D44: =+B44*(1+$B$10) -> 0 | E44: =+D44*(1+$B$10) -> 0 | F44: 0 | G44: 0
A45: ='2 Salary & Fringe'!A13 -> 0 | B45: ='2 Salary & Fringe'!I13 -> 0 | C45: 0 | D45: =+B45*(1+$B$10) -> 0 | E45: 0 | F45: 0 | G45: 0
A46: ='2 Salary & Fringe'!A14 -> 0 | B46: ='2 Salary & Fringe'!I14 -> 0 | C46: 0 | D46: 0 | E46: 0 | F46: 0 | G46: 0
A47: ='2 Salary & Fringe'!A15 -> 0 | B47: ='2 Salary & Fringe'!I15 -> 0 | C47: 0 | D47: 0 | E47: 0 | F47: 0 | G47: 0
A48: ='2 Salary & Fringe'!A16 -> 0 | B48: ='2 Salary & Fringe'!I16 -> 0 | C48: 0 | D48: 0 | E48: 0 | F48: 0 | G48: 0
A49: ='2 Salary & Fringe'!A17 -> 0 | B49: ='2 Salary & Fringe'!I17 -> 0 | C49: 0 | D49: 0 | E49: 0 | F49: 0 | G49: 0
A50: ='2 Salary & Fringe'!A18 -> 0 | B50: ='2 Salary & Fringe'!I18 -> 0 | C50: 0 | D50: 0 | E50: 0 | F50: 0 | G50: 0
A51: ='2 Salary & Fringe'!A19 -> 0 | B51: ='2 Salary & Fringe'!I19 -> 0 | C51: 0 | D51: 0 | E51: 0 | F51: 0 | G51: 0
A52: ='2 Salary & Fringe'!A20 -> 0 | B52: ='2 Salary & Fringe'!I20 -> 0 | C52: 0 | D52: 0 | E52: 0 | F52: 0 | G52: 0
A53: Sub-Total Salaries & Fringe Benefits | B53: =SUM(B44:B52) -> 0 | C53: 0 | D53: 0 | E53: 0 | F53: 0 | G53: 0
A55: Non-Salary Costs:
A56: Other Direct Costs | B56: ='3 Other Direct Expenses'!B51 -> 0 | C56: =(B56*$B$11)*$B$9/12 -> 0 | D56: =+B56*(1+$B$10) -> 0 | E56: =+D56*(1+$B$10) -> 0 | F56: 0 | G56: 0
A57: Admin Overhead Expense | B57: ='4 Admin Overhead Expenses'!I36 -> 0 | C57: =(B57*$B$11)*$B$9/12 -> 0 | D57: =+B57*(1+$B$10) -> 0 | E57: 0 | F57: 0 | G57: 0
A59: Sub-Total Non-Salary Costs | B59: =SUM(B56:B58) -> 0 | C59: 0 | D59: 0 | E59: 0 | F59: 0 | G59: 0
A61: TOTAL EXPENSES | B61: =B53+B59 -> 0 | C61: 0 | D61: 0 | E61: 0 | F61: 0 | G61: 0
A63: Projected Yearly Surplus/(Deficit) | B63: =B40-B61 -> 0 | C63: 0 | D63: 0 | E63: 0 | F63: 0 | G63: 0
A65: Subsidy If Any?: Please describe the source of the subsidy below. | C65: =-C63 -> 0 | D65: =-D63 -> 0 | E65: 0 | F65: 0 | G65: 0
A67: Accumulated Surplus/(Deficit) | B67: ='6 Expense Summary'!AI22 -> 0 | C67: =+C63+C65+B67 -> 0 | D67: =+D63+C67+D65 -> 0 | E67: =+E63+D67+E65 -> 0 | F67: 0 | G67: 0
A70: Subsidy Detail (Source, Amount, Duration)
A71: SOURCE:
A72: AMOUNT:
A73: DURATION:
A74: DESCRIPTION:
